{"text_format":"1","workbook":"xlsx","n_sheets":35,"sheets":["Accueil","Scolarité","Liste","Liste_Note","Saisie_Note","Recueil","Bulletin","Merite","Livret","Liste_Matières","liste_inscrits","liste_examen","pv_trimestre","pv_annuel","reçu","Inscription","Bilan","BDProfesseurs","BDEducateurs","BDEconomat","BDElèves","BDT1","BDT2","Feuil1","BDT3","BDS1","BDS2","BDCoefG","BDCoefT","BDMatieres","BDClasse","ParaMDP","ParaEcole","ParaVar","TCD"],"not_rendered":{"charts":0,"images":17,"macros":1,"external_links":0,"defined_names":16,"comments":1,"pivot_tables":0},"unopened":[],"bounds":{"document_bytes":16777216,"sheet_cells":100000,"rows_first":2000,"rows_last":500,"rows_between":2000,"halvings":0,"cell_chars":16384,"cell_head_chars":4096},"cells_cut":0,"cells_raw":0,"read":"whole","date_system":"1900"}

{"sheet":"Accueil","index":0,"n_rows":19,"n_cols":1,"rows_kept":19,"cut":false,"hidden":false,"merged":[[0,0,4,17],[7,0,11,17],[13,0,16,17],[18,0,23,17]]}
["Ministre de l'éducation nationale"]
[]
[]
[]
[]
[]
[]
["BP V102 Abidjan"]
[]
[]
[]
[]
[]
["DIRECTION RÉGIONALE D'ABIDJAN SUD"]
[]
[]
[]
[]
["INSTITUT D'ENSEIGNEMENT GÉNÉRAL ET TECHNIQUE LA GRACE ABIDJAN (IEGTA)"]

{"sheet":"Scolarité","index":1,"n_rows":7,"n_cols":18,"rows_kept":7,"cut":false,"hidden":true,"merged":[[0,10,0,12],[2,10,2,12],[1,10,1,12]]}
[]
[]
[]
[]
[]
[]
[null,"Matricule","Nom","Prénoms","Classe","Statut","Date Inscription","Inscription Physique","Date Annexe","Frais Annexe","Date 1er","1er  Versement","Date 2ème","2ème Versement","Date 3ème","3ème Versement","T. Versement","Reste à payer"]

{"sheet":"Liste","index":2,"n_rows":0,"n_cols":0,"rows_kept":0,"cut":false,"hidden":true,"merged":[]}

{"sheet":"Liste_Note","index":3,"n_rows":6,"n_cols":10,"rows_kept":6,"cut":false,"hidden":true,"merged":[]}
[]
[]
[]
[]
[null,null,"N°","NOM","PRÉNOMS","SEXE","N1","N2","N3","N4"]
[null,null,1,"ZADY","Zere","F"]

{"sheet":"Saisie_Note","index":4,"n_rows":9,"n_cols":5,"rows_kept":9,"cut":false,"hidden":true,"merged":[]}
[]
[]
[]
[]
[]
[]
[]
[]
[null,"MATRICULE","NOM","PRÉNOMS","NOTE"]

{"sheet":"Recueil","index":5,"n_rows":8,"n_cols":19,"rows_kept":8,"cut":false,"hidden":true,"merged":[]}
[]
[]
[]
[]
[]
[]
[null,null,null,"MATRICULE","NOM","PRÉNOMS","ANG","COND","EPS","FR","CMC","MATH","PHIL","EC","MATH FIN","EOE","EG","DROIT","INFO"]
[null,null,null,"23525452M","ZADY","Zere",10,12,14,15,10,15,11,16,11,15,10,12,17]

{"sheet":"Bulletin","index":6,"n_rows":48,"n_cols":11,"rows_kept":48,"cut":false,"hidden":true,"merged":[[29,9,29,10],[30,9,30,10],[34,9,34,10],[38,9,38,10],[6,3,6,10],[11,4,11,5],[20,5,20,10],[27,5,27,10],[28,3,28,4],[28,7,28,10],[39,9,39,10],[42,9,42,10],[47,3,47,10],[33,3,33,4],[33,6,33,8],[38,3,38,8]]}
[]
[]
[]
[]
[]
[]
[null,null,null,"2ème Semestre"]
[]
[null,null,null,"ZADY     Zere",null,null,null,null,null,null,"23525452M"]
[null,null,null,"Classe :","TleG1A",null,null,null,"Sexe :","FEMININ"]
[null,null,null,"Effectif Global :",1,null,null,null,"STatut :","AFFECTÉ"]
[null,null,null,"Date de naissance :","2000-01-02",null,null,null,"Redoublante :","OUI"]
[null,null,null,"DISCIPLINES","Moy  / 20","Coef","Moy * Coef","Rang","Moy/An","Nom des Professeurs","Appréciation et Signatures des professeurs"]
[null,null,null,"Anglais",11,2,{"$f":"IF(OR(E14=\"Disp\",E14=\"\"),\"\",E14*F14)","v":22},"1er",10.5,null,"Passable"]
[null,null,null,"CMC",11,2,22,"1er",10.5,null,"Passable"]
[null,null,null,"Conduite",10,2,20,"1er",11,null,"Passable"]
[null,null,null,"EPS",14,2,28,"1er",14,null,"Bien"]
[null,null,null,"Français",10,2,20,"1er",12.5,null,"Passable"]
[null,null,null,"Mathématique",14,2,28,"1er",14.5,null,"Bien"]
[null,null,null,"Philosophie",15,2,30,"1er",13,null,"Bien"]
[null,null,null,"Bilan  General",{"$f":"IF(COUNT(E14:E20)=0,\"\",AVERAGE(E14:E20))","v":12.142857142857142}]
[null,null,null,"DROIT",11,2,{"$f":"IF(OR(E22=\"Disp\",E22=\"\"),\"\",E22*F22)","v":22},"1er",11.5,null,"Passable"]
[null,null,null,"ECONOMIE D'ENTREPRISE",null,2,"",null,7.5,null,"Très Faible"]
[null,null,null,"ECONOMIE GENERALE",10,2,20,"1er",10,null,"Passable"]
[null,null,null,"Etude de Cas",13,2,26,"1er",14.5,null,"Assez Bien"]
[null,null,null,"INFORMATIQUE",16,2,32,"1er",16.5,null,"Très Bien"]
[null,null,null,"MATHEMATIQUE FINANCIERE",13,2,26,"1er",12,null,"Assez Bien"]
[null,null,null,"Bilan  Technique",{"$f":"IF(COUNT(E22:E27)=0,\"\",AVERAGE(E22:E27))","v":12.6}]
[null,null,null,"TOTAL",null,{"$f":"SUM(F$14:F27)","v":26},{"$f":"SUM(G$14:G27)","v":296},"Moyenne Sem2 /20 : 12,33"]
[null,null,null,"Moyenne 1er Semestre /20 :",12.92,null,"Rang :","1er",null,"Appréciation du conseil de classe"]
[null,null,null,"Moyenne 2ème Semestre /20 :",12.33,null,"Rang :","1er",null,"Insuffisant"]
[null,null,null,"Moyenne Annuel /20 :",12.526666666666667,null,"Rang :","1er"]
[]
[null,null,null,"DISTINCTION",null,null,"Heures Absences",null,null,"Tiémélécro, le ___________________________"]
[null,null,null,null,null,null,"Total :",null,null,"Le Professeur Principal :   "]
[null,null,null,null,null,null,"Justifiées :"]
[null,null,null,null,null,null,"Non justifiées :"]
[]
[null,null,null,"Sanction",null,null,null,null,null,"DECISION DE FIN D'ANNÉE"]
[null,null,null,null,null,null,null,null,null,"Exclu en cas d'échec"]
[]
[null,null,null,null,null,null,null,null,null,"Tiémélécro, le ___________________________"]
[null,null,null,null,null,null,null,null,null,"Le Proviseur :  Serge Kacou"]
[]
[]
[]
[]
[null,null,null,"Nb : Conserver ce bulletin précieusement. Aucun double ne sera établi par l'administration du Institut d'enseignement général et technique la Grace Abidjan (IEGTA)"]

{"sheet":"Merite","index":7,"n_rows":10,"n_cols":11,"rows_kept":10,"cut":false,"hidden":true,"merged":[[4,1,4,12],[8,2,8,4],[8,10,8,12],[9,2,9,4],[9,10,9,12]]}
[]
[]
[]
[]
[null,"Professeur Principal : "]
[]
[]
[]
[null,"MATRICULE","NOM ET PRENOMS",null,null,"SEXE","AGE","RED","MOY","RANG","Décision Fin Année"]
[null,"23525452M","ZADY   Zere",null,null,"F","23 ans","R",8.1,"1er","Exclu en cas d'échec"]

{"sheet":"Livret","index":8,"n_rows":35,"n_cols":24,"rows_kept":35,"cut":false,"hidden":true,"merged":[[11,3,11,6],[11,22,11,28],[7,5,7,6],[7,9,7,10],[7,19,7,22],[7,11,7,12],[7,13,7,14],[7,7,7,8],[11,15,11,21],[10,7,10,8],[10,9,10,10],[10,11,10,12],[5,3,5,6],[7,3,7,4],[10,13,10,14],[10,15,10,28],[5,19,5,23],[12,3,12,6],[13,3,13,6],[14,3,14,6],[15,3,15,6],[16,3,16,6],[17,3,17,6],[18,3,18,6],[19,3,19,6],[20,3,20,6],[21,3,21,6],[22,3,22,6],[23,3,23,6],[24,3,24,6],[25,3,25,6],[26,3,26,5],[12,15,12,21],[12,22,12,28],[13,15,13,21],[13,22,13,28],[14,15,14,21],[14,22,14,28],[15,15,15,21],[15,22,15,28],[16,15,16,21],[16,22,16,28],[17,15,17,21],[17,22,17,28],[18,15,18,21],[18,22,18,28],[19,15,19,21],[19,22,19,28],[20,15,20,21],[20,22,20,28],[24,15,24,21],[24,22,24,28],[21,15,21,21],[21,22,21,28],[22,15,22,21],[22,22,22,28],[23,15,23,21],[23,22,23,28],[25,7,25,8],[25,9,25,10],[25,11,25,12],[25,13,25,20],[25,21,25,28],[26,7,26,8],[26,9,26,10],[26,11,26,12],[27,3,27,5],[29,13,29,20],[28,3,28,5],[27,7,27,8],[27,9,27,10],[27,11,27,12],[28,7,28,8],[28,9,28,10],[28,11,28,12],[29,21,29,28],[30,13,30,20],[30,21,30,28],[34,3,34,6],[34,7,34,8],[34,9,34,10],[34,11,34,12],[34,13,34,20],[34,21,34,28]]}
[]
[]
[]
[]
[]
[null,null,null,"Nom et Prénoms :",null,null,null,"ZADY   Zere",null,null,null,null,null,null,null,null,null,null,null,"Année Scolaire  2022-2023"]
[]
[null,null,null,"Matricule :",null,"23525452M",null,"Redoublant :",null,"R",null,"Classe :",null,"TleG1A",null,null,null,null,null,"Effectif Total :",null,null,null,1]
[]
[]
[null,null,null,null,null,null,null,"1er Semestre",null,"2ème Semestre",null,null,null,"Annuel",null,"Professeurs"]
[null,null,null,"Disciplines",null,null,null,"Moy/20","Rang","Moy/20","Rang",null,null,"Moy/20","Rang","Nom et Prénoms",null,null,null,null,null,null,"Appréciation et signatures"]
[null,null,null,"Anglais",null,null,null,10,"1er",11,"1er",null,null,7,"1er",null,null,null,null,null,null,null,"Faible"]
[null,null,null,"CMC",null,null,null,10,"1er",11,"1er",null,null,7,"1er",null,null,null,null,null,null,null,"Faible"]
[null,null,null,"Conduite",null,null,null,12,"1er",10,"1er",null,null,7.333333333333333,"1er",null,null,null,null,null,null,null,"Faible"]
[null,null,null,"DROIT",null,null,null,12,"1er",11,"1er",null,null,7.666666666666667,"1er",null,null,null,null,null,null,null,"Faible"]
[null,null,null,"ECONOMIE D'ENTREPRISE",null,null,null,15,"1er",null,null,null,null,5,"1er",null,null,null,null,null,null,null,"Très Faible"]
[null,null,null,"ECONOMIE GENERALE",null,null,null,10,"1er",10,"1er",null,null,6.666666666666667,"1er",null,null,null,null,null,null,null,"Faible"]
[null,null,null,"EPS",null,null,null,14,"1er",14,"1er",null,null,9.3333333333333339,"1er",null,null,null,null,null,null,null,"Insuffisant"]
[null,null,null,"Etude de Cas",null,null,null,16,"1er",13,"1er",null,null,9.6666666666666661,"1er",null,null,null,null,null,null,null,"Insuffisant"]
[null,null,null,"Français",null,null,null,15,"1er",10,"1er",null,null,8.3333333333333339,"1er",null,null,null,null,null,null,null,"Insuffisant"]
[null,null,null,"INFORMATIQUE",null,null,null,17,"1er",16,"1er",null,null,11,"1er",null,null,null,null,null,null,null,"Passable"]
[null,null,null,"Mathématique",null,null,null,15,"1er",14,"1er",null,null,9.6666666666666661,"1er",null,null,null,null,null,null,null,"Insuffisant"]
[null,null,null,"MATHEMATIQUE FINANCIERE",null,null,null,11,"1er",13,"1er",null,null,8,"1er",null,null,null,null,null,null,null,"Insuffisant"]
[null,null,null,"Philosophie",null,null,null,11,"1er",15,"1er",null,null,8.6666666666666661,"1er",null,null,null,null,null,null,null,"Insuffisant"]
[null,null,null,"Distinctions / Sanctions",null,null,null,"Moy. Trim 1 /20",null,"Moy. Trim 2 /20",null,"Moy. Trim 3 /20",null,"AVIS ET OBSERVATIONS DU PROFESSEUR PRINCIPAL",null,null,null,null,null,null,null,"VISA ET OBSERVATIONS DU CHEF D'ÉTABLISSEMENT"]
[null,null,null,"1er Trimestre",null,null,"TH",12.92,null,12.33]
[null,null,null,"2ème Trimestre",null,null,"TH","Rang Trim 1",null,"Rang Trim 2",null,"Rang Trim 3"]
[null,null,null,"3ème Trimestre",null,null,null,"1er",null,"1er"]
[null,null,null,null,null,null,null,null,null,null,null,null,null,"Date :________________________________________",null,null,null,null,null,null,null,"Date :________________________________________"]
[null,null,null,null,null,null,null,null,null,null,null,null,null,"Signature :",null,null,null,null,null,null,null,"Signature :"]
[]
[]
[]
[null,null,null,"Moyenne Annuelle :",null,null,null,12.526666666666667,null,"Rang Annuel :",null,"1er",null,"Décision de fin d'année :",null,null,null,null,null,null,null,"Exclu en cas d'échec"]

{"sheet":"Liste_Matières","index":9,"n_rows":9,"n_cols":13,"rows_kept":9,"cut":false,"hidden":true,"merged":[[5,8,5,9],[7,7,7,8],[7,9,7,10],[7,11,7,12]]}
[]
[]
[]
[]
[]
[null,null,null,"Matière :","Conduite",null,null,null,"Professeur :"]
[]
[null,null,null,null,null,null,null,"1er Semestre",null,"2ème Semestre",null,"Annuel"]
[null,null,"Matricule","Nom et Prénoms","Sexe","Age","Red","Note","Rang","Note","Rang","Note","Rang"]

{"sheet":"liste_inscrits","index":10,"n_rows":10,"n_cols":9,"rows_kept":10,"cut":false,"hidden":true,"merged":[]}
[]
[]
[]
[]
[]
[null,null,"MATRICULE","NOM ET PRENOMS","SEXE","RED","CLASSE","DATE","MONTANT"]
[null,null,"10120456R","KOFFI   KOUASSI BLAISE","M","R","3ème3","2020-11-19",5000]
[null,null,"11000345T","ABI   SESSE AIMÉE","F",null,"6ème3","2020-10-20",4000]
[null,null,"12181993X","AGAMA   ETTIEN AGNES","F",null,"6ème3","2020-11-19",5000]
[null,null,null,null,null,null,null,"Total",{"$f":"SUBTOTAL(109,Table_Inscrit[MONTANT])","v":14000}]

{"sheet":"liste_examen","index":11,"n_rows":9,"n_cols":8,"rows_kept":9,"cut":false,"hidden":true,"merged":[]}
[]
[]
[]
[]
[]
[null,null,"MATRICULE","NOM ET PRENOMS","SEXE","TYPE D'EXAMEN","DATE","MONTANT"]
[null,null,"10120456R","KOFFI   KOUASSI BLAISE","M",null,"2020-12-21",2000]
[null,null,"12181993X","AGAMA   ETTIEN AGNES","F",null,"2020-12-21",2000]
[null,null,null,null,null,null,"Total",{"$f":"SUBTOTAL(109,Table_Examen[MONTANT])","v":4000}]

{"sheet":"pv_trimestre","index":12,"n_rows":45,"n_cols":22,"rows_kept":45,"cut":false,"hidden":true,"merged":[[39,1,39,4],[39,6,39,7],[39,8,39,9],[39,10,39,11],[39,12,39,13],[39,14,39,15],[39,16,39,17],[39,19,39,22],[40,1,40,4],[40,6,40,7],[40,8,40,9],[40,10,40,11],[40,12,40,13],[40,14,40,15],[40,16,40,17],[40,19,40,22],[37,1,37,4],[37,6,37,7],[37,8,37,9],[37,10,37,11],[37,12,37,13],[37,14,37,15],[37,16,37,17],[37,19,37,22],[38,1,38,4],[38,6,38,7],[38,8,38,9],[38,10,38,11],[38,12,38,13],[38,14,38,15],[38,16,38,17],[38,19,38,22],[36,14,36,15],[36,16,36,17],[36,19,36,22],[36,1,36,4],[36,6,36,7],[36,8,36,9],[36,10,36,11],[36,12,36,13],[34,14,34,15],[34,16,34,17],[34,19,34,22],[35,1,35,4],[35,6,35,7],[35,8,35,9],[35,10,35,11],[35,12,35,13],[35,14,35,15],[35,16,35,17],[35,19,35,22],[34,1,34,4],[34,6,34,7],[34,8,34,9],[34,10,34,11],[34,12,34,13],[32,14,32,15],[32,16,32,17],[32,19,32,22],[33,1,33,4],[33,6,33,7],[33,8,33,9],[33,10,33,11],[33,12,33,13],[33,14,33,15],[33,16,33,17],[33,19,33,22],[32,1,32,4],[32,6,32,7],[32,8,32,9],[32,10,32,11],[32,12,32,13],[30,14,30,15],[30,16,30,17],[30,19,30,22],[31,1,31,4],[31,6,31,7],[31,8,31,9],[31,10,31,11],[31,12,31,13],[31,14,31,15],[31,16,31,17],[31,19,31,22],[30,1,30,4],[30,6,30,7],[30,8,30,9],[30,10,30,11],[30,12,30,13],[29,1,29,4],[29,6,29,7],[29,8,29,9],[29,10,29,11],[29,12,29,13],[29,14,29,15],[29,16,29,17],[29,19,29,22],[28,1,28,4],[28,6,28,7],[28,8,28,9],[28,10,28,11],[28,12,28,13],[26,19,27,22],[27,6,27,7],[27,8,27,9],[27,10,27,11],[27,12,27,13],[27,14,27,15],[27,16,27,17],[26,18,27,18],[28,14,28,15],[28,16,28,17],[28,19,28,22],[26,1,27,4],[26,5,27,5],[26,6,26,9],[26,10,26,13],[20,1,20,3],[20,4,20,5],[20,7,20,10],[20,11,20,12],[18,13,18,17],[26,14,26,17],[18,18,18,22],[19,13,21,17],[19,18,21,22],[21,1,21,3],[21,4,21,5],[21,7,21,10],[21,11,21,12],[19,1,19,3],[19,4,19,5],[19,7,19,10],[19,11,19,12],[18,1,18,3],[18,4,18,5],[18,7,18,12],[14,21,14,22],[13,13,13,14],[13,15,13,16],[13,17,13,18],[13,19,13,20],[13,21,13,22],[14,13,14,14],[14,15,14,16],[14,17,14,18],[14,19,14,20],[13,11,13,12],[14,1,14,2],[14,3,14,4],[14,5,14,6],[14,7,14,8],[14,9,14,10],[13,1,13,2],[13,3,13,4],[13,5,13,6],[13,7,13,8],[13,9,13,10],[14,11,14,12],[11,1,12,4],[11,5,11,16],[11,17,12,22],[12,5,12,8],[12,9,12,12],[12,13,12,16],[6,3,6,4],[6,5,6,15],[6,17,6,18],[6,19,6,20],[7,3,7,4],[7,5,7,15],[7,17,7,18],[7,19,7,20]]}
[]
[]
[]
[]
[null,null,null,"PROFESSEUR PRINCIPAL"]
[]
[null,null,null,"MATRICULE",null,"NOM ET PRENOMS",null,null,null,null,null,null,null,null,null,null,"SEXE","MOYENNE",null,"RANG"]
[null,null,null,"10120456R",null,"KOFFI   KOUASSI BLAISE",null,null,null,null,null,null,null,null,null,null,"M",12.47,null,"1er"]
[]
[null,"Statistiques de la classe"]
[]
[null,"Effectif Classe",null,null,null,"ELEVES AYANT UNE MOYENNE : Moy",null,null,null,null,null,null,null,null,null,null,null,"Moyenne de la classe"]
[null,null,null,null,null,"Moy>=10",null,null,null,"10<Moy>=08,5",null,null,null,"Moy<08,5"]
[null,"Total",null,"Classé",null,"Nombre",null,"%",null,"Nombre",null,"%",null,"Nombre",null,"%",null,"Mini",null,"Maxi",null,"Moy"]
[null,2,null,2,null,1,null,50,null,1,null,50,null,0,null,null,null,9.36,null,12.47,null,10.92]
[]
[null,"Distinctions et Sanctions"]
[]
[null,"Distinctions",null,null,"Nombre",null,null,"Sanctions",null,null,null,null,null,"Avertissement Conduite",null,null,null,null,"Blâme Conduite"]
[null,"TH+F",null,null,1,null,null,null,null,null,null,"Nbre",null,1,null,null,null,null,0]
[null,"TH+E",null,null,0,null,null,"Avertissement Travail",null,null,null,1]
[null,"TH",null,null,0,null,null,"Blâme Travail",null,null,null,0]
[]
[]
[null,"Statistiques par discipline"]
[]
[null,"Discipline",null,null,null,"Eff\nClassé","Moy>=10",null,null,null,"10<Moy>=08,5",null,null,null,"Moy<08,5",null,null,null,"Moy\nClasse","Professeur / Educateur(trice) + Emargement"]
[null,null,null,null,null,null,"Nombre",null,"%",null,"Nombre",null,"%",null,"Nombre",null,"%"]
[null,"Anglais",null,null,null,2,1,null,50,null,null,null,null,null,null,null,null,null,12]
[null,"Composition Française",null,null,null,2,2,null,100,null,null,null,null,null,null,null,null,null,11.5]
[null,"Conduite",null,null,null,2,2,null,100,null,null,null,null,null,null,null,null,null,14.5]
[null,"EDHC",null,null,null,2,2,null,100,null,null,null,null,null,null,null,null,null,16]
[null,"EPS",null,null,null,2,1,null,50,null,null,null,null,null,null,null,null,null,12]
[null,"Expression Ecrite",null,null,null,2,1,null,50,null,null,null,null,null,1,null,50,null,10]
[null,"Histoire Géographie",null,null,null,2,1,null,50,null,null,null,null,null,1,null,50,null,7]
[null,"LV2",null,null,null,2,1,null,50,null,null,null,null,null,1,null,50,null,7.5]
[null,"Mathématique",null,null,null,2,1,null,50,null,null,null,null,null,1,null,50,null,7]
[null,"Orthographe Grammaire",null,null,null,2,2,null,100,null,null,null,null,null,null,null,null,null,13]
[null,"Physique Chimie",null,null,null,2,2,null,100,null,null,null,null,null,null,null,null,null,14]
[null,"SVT",null,null,null,2,1,null,50,null,null,null,null,null,1,null,50,null,8]
[null,"Arts Plastiques",null,null,null,2,2,null,100,null,null,null,null,null,null,null,null,null,13]
[]
[null,"Le Professeur Principal",null,null,null,null,null,null,null,null,null,null,null,null,"Tiemelekro,le   22/09/2023"]
[]
[null,null,null,null,null,null,null,null,null,null,null,null,null,null,null,null,"Le Proviseur"]

{"sheet":"pv_annuel","index":13,"n_rows":45,"n_cols":22,"rows_kept":45,"cut":false,"hidden":true,"merged":[[39,1,39,4],[39,6,39,7],[39,8,39,9],[39,10,39,11],[39,12,39,13],[39,14,39,15],[39,16,39,17],[39,19,39,22],[40,1,40,4],[40,6,40,7],[40,8,40,9],[40,10,40,11],[40,12,40,13],[40,14,40,15],[40,16,40,17],[40,19,40,22],[37,1,37,4],[37,6,37,7],[37,8,37,9],[37,10,37,11],[37,12,37,13],[37,14,37,15],[37,16,37,17],[37,19,37,22],[38,1,38,4],[38,6,38,7],[38,8,38,9],[38,10,38,11],[38,12,38,13],[38,14,38,15],[38,16,38,17],[38,19,38,22],[36,14,36,15],[36,16,36,17],[36,19,36,22],[36,1,36,4],[36,6,36,7],[36,8,36,9],[36,10,36,11],[36,12,36,13],[34,14,34,15],[34,16,34,17],[34,19,34,22],[35,1,35,4],[35,6,35,7],[35,8,35,9],[35,10,35,11],[35,12,35,13],[35,14,35,15],[35,16,35,17],[35,19,35,22],[34,1,34,4],[34,6,34,7],[34,8,34,9],[34,10,34,11],[34,12,34,13],[32,14,32,15],[32,16,32,17],[32,19,32,22],[33,1,33,4],[33,6,33,7],[33,8,33,9],[33,10,33,11],[33,12,33,13],[33,14,33,15],[33,16,33,17],[33,19,33,22],[32,1,32,4],[32,6,32,7],[32,8,32,9],[32,10,32,11],[32,12,32,13],[30,14,30,15],[30,16,30,17],[30,19,30,22],[31,1,31,4],[31,6,31,7],[31,8,31,9],[31,10,31,11],[31,12,31,13],[31,14,31,15],[31,16,31,17],[31,19,31,22],[30,1,30,4],[30,6,30,7],[30,8,30,9],[30,10,30,11],[30,12,30,13],[28,14,28,15],[28,16,28,17],[28,19,28,22],[29,1,29,4],[29,6,29,7],[29,8,29,9],[29,10,29,11],[29,12,29,13],[29,14,29,15],[29,16,29,17],[29,19,29,22],[28,1,28,4],[28,6,28,7],[28,8,28,9],[28,10,28,11],[28,12,28,13],[26,18,27,18],[26,19,27,22],[27,6,27,7],[27,8,27,9],[27,10,27,11],[27,12,27,13],[27,14,27,15],[27,16,27,17],[22,16,22,17],[26,1,27,4],[26,5,27,5],[26,6,26,9],[26,10,26,13],[26,14,26,17],[22,4,22,5],[22,6,22,7],[22,8,22,9],[22,10,22,11],[22,12,22,13],[22,14,22,15],[20,16,20,17],[21,4,21,5],[21,6,21,7],[21,8,21,9],[21,10,21,11],[21,12,21,13],[21,14,21,15],[21,16,21,17],[20,4,20,5],[20,6,20,7],[20,8,20,9],[20,10,20,11],[20,12,20,13],[20,14,20,15],[18,6,18,9],[18,10,18,13],[18,14,18,17],[19,6,19,7],[19,8,19,9],[19,10,19,11],[19,12,19,13],[19,14,19,15],[19,16,19,17],[14,21,14,22],[13,13,13,14],[13,15,13,16],[13,17,13,18],[13,19,13,20],[13,21,13,22],[14,13,14,14],[14,15,14,16],[14,17,14,18],[14,19,14,20],[13,11,13,12],[14,1,14,2],[14,3,14,4],[14,5,14,6],[14,7,14,8],[14,9,14,10],[13,1,13,2],[13,3,13,4],[13,5,13,6],[13,7,13,8],[13,9,13,10],[14,11,14,12],[11,1,12,4],[11,5,11,16],[11,17,12,22],[12,5,12,8],[12,9,12,12],[12,13,12,16],[6,3,6,4],[6,5,6,15],[6,17,6,18],[6,19,6,20],[7,3,7,4],[7,5,7,15],[7,17,7,18],[7,19,7,20]]}
[]
[]
[]
[]
[null,null,null,"PROFESSEUR PRINCIPAL"]
[]
[null,null,null,"MATRICULE",null,"NOM ET PRENOMS",null,null,null,null,null,null,null,null,null,null,"SEXE","MOYENNE",null,"RANG"]
[null,null,null,"10120456R",null,"KOFFI   KOUASSI BLAISE",null,null,null,null,null,null,null,null,null,null,"M",12.47,null,"1er"]
[]
[null,"Statistiques de la classe"]
[]
[null,"Effectif Classe",null,null,null,"ELEVES AYANT UNE MOYENNE : Moy",null,null,null,null,null,null,null,null,null,null,null,"Moyenne de la classe"]
[null,null,null,null,null,"Moy>=10",null,null,null,"10>Moy>=08,5",null,null,null,"Moy<08,5"]
[]
[null,2,null,2,null,1,null,50,null,1,null,50,null,0,null,null,null,9.36,null,12.47,null,10.92]
[]
[null,"Résultats"]
[]
[null,null,null,null,null,null,"ADMIS",null,null,null,"REDOUBLANTS",null,null,null,"EXCLUS"]
[null,null,null,null,null,null,"Nombre",null,"%",null,"Nombre",null,"%",null,"Nombre",null,"%"]
[null,null,null,null,"Filles"]
[null,null,null,null,"Garçons",null,0,null,0,null,1,null,50,null,0,null,0]
[null,null,null,null,"TOTAL",null,{"$f":"G21+G22","v":0},null,{"$f":"I21+I22","v":0},null,{"$f":"K21+K22","v":1},null,{"$f":"M21+M22","v":50},null,{"$f":"O21+O22","v":0},null,{"$f":"Q21+Q22","v":0}]
[]
[null,"Statistiques par discipline"]
[]
[null,"Discipline",null,null,null,"Eff\nClassé","Moy>=10",null,null,null,"10>Moy>=08,5",null,null,null,"Moy<08,5",null,null,null,"Moy\nClasse","Professeur / Educateur(trice)"]
[null,null,null,null,null,null,"Nombre",null,"%",null,"Nombre",null,"%",null,"Nombre",null,"%"]
[null,"Anglais",null,null,null,2,1,null,50,null,null,null,null,null,null,null,null,null,4]
[null,"Composition Française",null,null,null,2,2,null,100,null,null,null,null,null,null,null,null,null,3.8333333333333335]
[null,"Conduite",null,null,null,2,2,null,100,null,null,null,null,null,null,null,null,null,4.833333333333333]
[null,"EDHC",null,null,null,2,2,null,100,null,null,null,null,null,null,null,null,null,5.333333333333333]
[null,"EPS",null,null,null,2,1,null,50,null,null,null,null,null,null,null,null,null,4]
[null,"Expression Ecrite",null,null,null,2,1,null,50,null,null,null,null,null,1,null,50,null,3.3333333333333335]
[null,"Histoire Géographie",null,null,null,2,1,null,50,null,null,null,null,null,1,null,50,null,2.3333333333333335]
[null,"LV2",null,null,null,2,1,null,50,null,null,null,null,null,1,null,50,null,2.5]
[null,"Mathématique",null,null,null,2,1,null,50,null,null,null,null,null,1,null,50,null,2.3333333333333335]
[null,"Orthographe Grammaire",null,null,null,2,2,null,100,null,null,null,null,null,null,null,null,null,4.333333333333333]
[null,"Physique Chimie",null,null,null,2,2,null,100,null,null,null,null,null,null,null,null,null,4.666666666666667]
[null,"SVT",null,null,null,2,1,null,50,null,null,null,null,null,1,null,50,null,2.6666666666666665]
[null,"Arts Plastiques",null,null,null,2,2,null,100,null,null,null,null,null,null,null,null,null,4.333333333333333]
[]
[null,"Le Professeur Principal",null,null,null,null,null,null,null,null,null,null,null,null,"Tiemelekro,le   22/09/2023"]
[]
[null,null,null,null,null,null,null,null,null,null,null,null,null,null,null,null,"Le Proviseur"]

{"sheet":"reçu","index":14,"n_rows":17,"n_cols":5,"rows_kept":17,"cut":false,"hidden":true,"merged":[[5,4,5,6],[7,4,7,6],[11,4,11,6],[9,4,9,7],[16,4,16,5],[13,4,13,5]]}
[]
[]
[]
[]
[]
[null,null,null,"Matricule :","12181993X"]
[]
[null,null,null,"Nom :","AGAMA"]
[]
[null,null,null,"Prénoms :","ETTIEN AGNES"]
[]
[null,null,null,"Date :",44158]
[]
[null,null,null,"Montant :",3000]
[null,null,null,null,"trois mille    FCFA"]
[]
[null,null,null,"Reste à payer :",4000]

{"sheet":"Inscription","index":15,"n_rows":43,"n_cols":10,"rows_kept":43,"cut":false,"hidden":true,"merged":[[17,2,17,3],[11,2,11,3],[12,2,12,3],[13,2,13,3],[14,2,14,3],[15,2,15,3],[29,2,29,3],[30,2,30,3],[31,2,31,3],[18,2,18,3],[19,2,19,3],[20,2,20,3],[22,2,22,3],[27,2,27,3],[28,2,28,3],[11,4,11,7],[12,4,12,7],[13,4,13,7],[14,4,14,7],[15,4,15,7],[29,4,29,7],[30,4,30,7],[31,4,31,7],[22,4,22,7],[17,4,17,7],[18,4,18,7],[19,4,19,7],[27,4,27,7],[28,4,28,7],[20,4,20,7]]}
[]
[]
[]
[]
[]
[]
[null,null,null,"Maticule:","06121925W"]
[]
[]
[]
[]
[null,null,"  Nom :",null,"ADJED",null,null,null,"         Sexe :","M"]
[null,null,"  Prénoms :",null,"MARC ARTHUR"]
[null,null,"  Date de naissance :",null,"2004-04-14"]
[null,null,"  Lieu de naissance :"]
[null,null,"  Nationalité :"]
[]
[null,null,"  Redoublant :",null,"NON"]
[null,null,"  Classe :",null,"TleG1A"]
[null,null,"  LV2 :"]
[null,null,"  EPS :",null,"Apte"]
[]
[null,null,"Somme payée à l'inscription :"]
[]
[]
[]
[]
[null,null,"  Nom et prénom(s) du père :"]
[null,null,"  Nom et prénom(s) de la mère :"]
[null,null,"  Lieu de residence des parents :"]
[null,null,"  Adresse des parents :"]
[null,null,"  Téléphone :"]
[]
[]
[]
[null,null,null,null,null,"Fait à Abidjan Le,",{"$f":"TODAY()","v":"2023-09-27"}]
[]
[]
[]
[null,null,null,null,null,null,"                     L'Econome"]
[]
[]
[null,null,null,null,null,null,"Monsieur  Eco 1  pre Eco 1"]

{"sheet":"Bilan","index":16,"n_rows":23,"n_cols":10,"rows_kept":23,"cut":false,"hidden":true,"merged":[[18,1,18,2],[18,3,18,4],[18,5,18,6],[18,7,18,8],[18,9,18,10],[16,1,16,2],[16,3,16,4],[16,5,16,6],[16,7,16,8],[16,9,16,10],[17,1,17,2],[17,3,17,4],[17,5,17,6],[17,7,17,8],[17,9,17,10],[14,1,14,2],[14,3,14,4],[14,5,14,6],[14,7,14,8],[14,9,14,10],[15,1,15,2],[15,3,15,4],[15,5,15,6],[15,7,15,8],[15,9,15,10],[12,1,12,2],[12,3,12,4],[12,5,12,6],[12,7,12,8],[12,9,12,10],[13,1,13,2],[13,3,13,4],[13,5,13,6],[13,7,13,8],[13,9,13,10],[10,1,10,2],[10,3,10,4],[10,5,10,6],[10,7,10,8],[10,9,10,10],[11,1,11,2],[11,3,11,4],[11,5,11,6],[11,7,11,8],[11,9,11,10],[8,1,8,2],[8,3,8,4],[8,5,8,6],[8,7,8,8],[8,9,8,10],[9,1,9,2],[9,3,9,4],[9,5,9,6],[9,7,9,8],[9,9,9,10],[6,1,6,2],[6,3,6,4],[6,5,6,6],[6,7,6,8],[6,9,6,10],[7,1,7,2],[7,3,7,4],[7,5,7,6],[7,7,7,8],[7,9,7,10],[4,3,4,10],[5,1,5,2],[5,3,5,4],[5,5,5,6],[5,7,5,8],[5,9,5,10]]}
[]
[null,null,null,"                   FICHE RECAPITULATIVE"]
[]
[]
[null,null,null,"BILAN ECOLE ET EXAMEN "]
[null,"MOIS",null,"INSCRIPTION",null,"SCOLARITE",null,"EXAMEN",null,"TOTAL"]
[null,"Septembre",null,null,null,null,null,null,null,{"$f":"IF(COUNT(D7:I7)=0,\"\",SUM(D7:I7))","v":""}]
[null,"Octobre",null,4000,null,null,null,null,null,{"$f":"IF(COUNT(D8:I8)=0,\"\",SUM(D8:I8))","v":4000}]
[null,"Novembre",null,10000,null,4000,null,null,null,14000]
[null,"Décembre",null,null,null,null,null,4000,null,4000]
[null,"Janvier",null,null,null,null,null,null,null,""]
[null,"Février",null,null,null,null,null,null,null,""]
[null,"Mars",null,null,null,null,null,null,null,""]
[null,"Avril",null,null,null,null,null,null,null,""]
[null,"Mai",null,null,null,null,null,null,null,""]
[null,"Juin",null,null,null,null,null,null,null,""]
[null,"Juillet",null,null,null,null,null,null,null,""]
[null,"Août",null,null,null,null,null,null,null,""]
[null,"TOTAL",null,{"$f":"SUM(D7:E18)","v":14000},null,{"$f":"SUM(F7:G18)","v":4000},null,{"$f":"SUM(H7:I18)","v":4000},null,22000]
[]
[null,null,null,null,null,null,"Fait à Abidjan Le, ",{"$f":"TODAY()","v":"2023-09-27"}]
[]
[null,null,null,null,null,null,null,"                         L'Econome"]

{"sheet":"BDProfesseurs","index":17,"n_rows":9,"n_cols":34,"rows_kept":9,"cut":false,"hidden":true,"merged":[[1,6,1,10]]}
[]
[null,null,null,null,null,null,"INFORMATION PROFESSEURS"]
[]
["Matricule","Civilité","Nom","Prénoms","PP","Specialite","Classe1","Classe2","Classe3","Classe4","Classe5","Classe6","Classe7","Classe8","Classe9","Classe10","Classe11","Classe12","Classe13","Classe14","Matiere1","Matiere2","Matiere3","Matiere4","Matiere5","Matiere6","Matiere7","Matiere8","Matiere9","Matiere10","Matiere11","Matiere12","Matiere13","Matiere14"]
["315859W","Monsieur","ZIRIPE","ARNAUD","1èreA1A","ANGLAIS","1èreA1A","3ème1",null,null,null,null,null,null,null,null,null,null,null,null,"Composition Française","Conduite"]
["123456Y","Monsieur","KOFFI","KONAN FRANCK",null,null,null,null,null,null,null,null,null,null,null,null,null,null,null,null,"Composition Française"]
["293471R","Madame","DUPONT","ALYSÉE",null,"MATH"]
["454545T","Mademoiselle","DUVAL","ISABELLE",null,"HISTOIRE"]
["4544F","Monsieur","GSJ","SCDSDC",null,"ANGLAIS",null,null,null,null,null,null,null,null,null,null,null,null,null,null,"Anglais"]

{"sheet":"BDEducateurs","index":18,"n_rows":20,"n_cols":18,"rows_kept":20,"cut":false,"hidden":true,"merged":[[1,6,1,10]]}
[]
[null,null,null,null,null,null,"INFORMATION EDUCATEUR"]
[]
["Matricule","Civilité","Nom","Prénoms","Classe1","Classe2","Classe3","Classe4","Classe5","Classe6","Classe7","Classe8","Classe9","Classe10","Classe11","Classe12","Classe13","Classe14"]
["5353A","Monsieur","Edu 1","Pre Edu 1"]
["5353B","Madame","Edu 2","Pre Edu 2"]
["5353C","Mademoiselle","Edu 3","Pre Edu 3"]
["5353C","Monsieur","Edu 4","Pre Edu 4"]
["5353D","Madame","Edu 5","Pre Edu 5"]
["5353F","Monsieur","Edu 6","Pre Edu 6"]
["5353G","Madame","Edu 7","Pre Edu 7"]
["5353M","Madame","Edu 8","Pre Edu 8"]
["5353P","Madame","Edu 9","Pre Edu 9"]
["5353Q","Mademoiselle","Edu 10","Pre Edu 10"]
["5353T","Mademoiselle","Edu 11","Pre Edu 11"]
["5353V","Madame","Edu 12","Pre Edu 12"]
["5353X","Monsieur","Edu 13","Pre Edu 13"]
["5353AB","Madame","Edu 14","Pre Edu 14"]
["5353AG","Monsieur","Edu 15","Pre Edu 15"]
["5353AH","Madame","Edu 16","Pre Edu 16"]

{"sheet":"BDEconomat","index":19,"n_rows":50,"n_cols":16,"rows_kept":50,"cut":false,"hidden":true,"merged":[[1,6,1,10]]}
[]
[null,null,null,null,null,null,"INFORMATION ECONOME"]
[]
["Matricule","Reste","Total Frais","Total Vers","Date Inscription","Date Examen","Date Annexe","Date 1er","Date 2ème","Date 3ème","Inscription Physique","Frais Examen","Frais Annexe","1er Versement","2ème Versement","3ème Versement"]
["10120456R",{"$f":"IF(COUNT(Table_Eco[[#This Row],[Total Frais]:[Total Vers]])=0,\"\",IF(Table_Eco[[#This Row],[Total Vers]]=\"\",Table_Eco[[#This Row],[Total Frais]],Table_Eco[[#This Row],[Total Frais]]-Table_Eco[[#This Row],[Total Vers]]))","v":6000},{"$f":"IF(COUNT(Table_Eco[[#This Row],[Inscription Physique]:[Frais Annexe]])=0,\"\",SUM(Table_Eco[[#This Row],[Inscription Physique]:[Frais Annexe]]))","v":9000},{"$f":"IF(COUNT(Table_Eco[[#This Row],[1er Versement]:[3ème Versement]])=0,\"\",SUM(Table_Eco[[#This Row],[1er Versement]:[3ème Versement]]))","v":3000},"2020-11-19","2020-12-21","2020-11-20","2020-11-23",null,null,5000,2000,2000,3000]
["12181993X",{"$f":"IF(COUNT(Table_Eco[[#This Row],[Total Frais]:[Total Vers]])=0,\"\",IF(Table_Eco[[#This Row],[Total Vers]]=\"\",Table_Eco[[#This Row],[Total Frais]],Table_Eco[[#This Row],[Total Frais]]-Table_Eco[[#This Row],[Total Vers]]))","v":6000},{"$f":"IF(COUNT(Table_Eco[[#This Row],[Inscription Physique]:[Frais Annexe]])=0,\"\",SUM(Table_Eco[[#This Row],[Inscription Physique]:[Frais Annexe]]))","v":9000},{"$f":"IF(COUNT(Table_Eco[[#This Row],[1er Versement]:[3ème Versement]])=0,\"\",SUM(Table_Eco[[#This Row],[1er Versement]:[3ème Versement]]))","v":3000},"2020-11-19","2020-12-21","2020-11-20","2020-11-23",null,null,5000,2000,2000,3000]
["11000345T",{"$f":"IF(COUNT(Table_Eco[[#This Row],[Total Frais]:[Total Vers]])=0,\"\",IF(Table_Eco[[#This Row],[Total Vers]]=\"\",Table_Eco[[#This Row],[Total Frais]],Table_Eco[[#This Row],[Total Frais]]-Table_Eco[[#This Row],[Total Vers]]))","v":4000},{"$f":"IF(COUNT(Table_Eco[[#This Row],[Inscription Physique]:[Frais Annexe]])=0,\"\",SUM(Table_Eco[[#This Row],[Inscription Physique]:[Frais Annexe]]))","v":4000},{"$f":"IF(COUNT(Table_Eco[[#This Row],[1er Versement]:[3ème Versement]])=0,\"\",SUM(Table_Eco[[#This Row],[1er Versement]:[3ème Versement]]))","v":""},"2020-10-20",null,null,null,null,null,4000]
["06121925W",{"$f":"IF(COUNT(Table_Eco[[#This Row],[Total Frais]:[Total Vers]])=0,\"\",IF(Table_Eco[[#This Row],[Total Vers]]=\"\",Table_Eco[[#This Row],[Total Frais]],Table_Eco[[#This Row],[Total Frais]]-Table_Eco[[#This Row],[Total Vers]]))","v":""},{"$f":"IF(COUNT(Table_Eco[[#This Row],[Inscription Physique]:[Frais Annexe]])=0,\"\",SUM(Table_Eco[[#This Row],[Inscription Physique]:[Frais Annexe]]))","v":""},{"$f":"IF(COUNT(Table_Eco[[#This Row],[1er Versement]:[3ème Versement]])=0,\"\",SUM(Table_Eco[[#This Row],[1er Versement]:[3ème Versement]]))","v":""}]
["07100101T",{"$f":"IF(COUNT(Table_Eco[[#This Row],[Total Frais]:[Total Vers]])=0,\"\",IF(Table_Eco[[#This Row],[Total Vers]]=\"\",Table_Eco[[#This Row],[Total Frais]],Table_Eco[[#This Row],[Total Frais]]-Table_Eco[[#This Row],[Total Vers]]))","v":""},{"$f":"IF(COUNT(Table_Eco[[#This Row],[Inscription Physique]:[Frais Annexe]])=0,\"\",SUM(Table_Eco[[#This Row],[Inscription Physique]:[Frais Annexe]]))","v":""},{"$f":"IF(COUNT(Table_Eco[[#This Row],[1er Versement]:[3ème Versement]])=0,\"\",SUM(Table_Eco[[#This Row],[1er Versement]:[3ème Versement]]))","v":""}]
["10120411L",{"$f":"IF(COUNT(Table_Eco[[#This Row],[Total Frais]:[Total Vers]])=0,\"\",IF(Table_Eco[[#This Row],[Total Vers]]=\"\",Table_Eco[[#This Row],[Total Frais]],Table_Eco[[#This Row],[Total Frais]]-Table_Eco[[#This Row],[Total Vers]]))","v":""},{"$f":"IF(COUNT(Table_Eco[[#This Row],[Inscription Physique]:[Frais Annexe]])=0,\"\",SUM(Table_Eco[[#This Row],[Inscription Physique]:[Frais Annexe]]))","v":""},{"$f":"IF(COUNT(Table_Eco[[#This Row],[1er Versement]:[3ème Versement]])=0,\"\",SUM(Table_Eco[[#This Row],[1er Versement]:[3ème Versement]]))","v":""}]
["11002332P",{"$f":"IF(COUNT(Table_Eco[[#This Row],[Total Frais]:[Total Vers]])=0,\"\",IF(Table_Eco[[#This Row],[Total Vers]]=\"\",Table_Eco[[#This Row],[Total Frais]],Table_Eco[[#This Row],[Total Frais]]-Table_Eco[[#This Row],[Total Vers]]))","v":""},{"$f":"IF(COUNT(Table_Eco[[#This Row],[Inscription Physique]:[Frais Annexe]])=0,\"\",SUM(Table_Eco[[#This Row],[Inscription Physique]:[Frais Annexe]]))","v":""},{"$f":"IF(COUNT(Table_Eco[[#This Row],[1er Versement]:[3ème Versement]])=0,\"\",SUM(Table_Eco[[#This Row],[1er Versement]:[3ème Versement]]))","v":""}]
["11002377R",{"$f":"IF(COUNT(Table_Eco[[#This Row],[Total Frais]:[Total Vers]])=0,\"\",IF(Table_Eco[[#This Row],[Total Vers]]=\"\",Table_Eco[[#This Row],[Total Frais]],Table_Eco[[#This Row],[Total Frais]]-Table_Eco[[#This Row],[Total Vers]]))","v":""},{"$f":"IF(COUNT(Table_Eco[[#This Row],[Inscription Physique]:[Frais Annexe]])=0,\"\",SUM(Table_Eco[[#This Row],[Inscription Physique]:[Frais Annexe]]))","v":""},{"$f":"IF(COUNT(Table_Eco[[#This Row],[1er Versement]:[3ème Versement]])=0,\"\",SUM(Table_Eco[[#This Row],[1er Versement]:[3ème Versement]]))","v":""}]
["11002605Z",{"$f":"IF(COUNT(Table_Eco[[#This Row],[Total Frais]:[Total Vers]])=0,\"\",IF(Table_Eco[[#This Row],[Total Vers]]=\"\",Table_Eco[[#This Row],[Total Frais]],Table_Eco[[#This Row],[Total Frais]]-Table_Eco[[#This Row],[Total Vers]]))","v":""},{"$f":"IF(COUNT(Table_Eco[[#This Row],[Inscription Physique]:[Frais Annexe]])=0,\"\",SUM(Table_Eco[[#This Row],[Inscription Physique]:[Frais Annexe]]))","v":""},{"$f":"IF(COUNT(Table_Eco[[#This Row],[1er Versement]:[3ème Versement]])=0,\"\",SUM(Table_Eco[[#This Row],[1er Versement]:[3ème Versement]]))","v":""}]
["11002711V",{"$f":"IF(COUNT(Table_Eco[[#This Row],[Total Frais]:[Total Vers]])=0,\"\",IF(Table_Eco[[#This Row],[Total Vers]]=\"\",Table_Eco[[#This Row],[Total Frais]],Table_Eco[[#This Row],[Total Frais]]-Table_Eco[[#This Row],[Total Vers]]))","v":""},{"$f":"IF(COUNT(Table_Eco[[#This Row],[Inscription Physique]:[Frais Annexe]])=0,\"\",SUM(Table_Eco[[#This Row],[Inscription Physique]:[Frais Annexe]]))","v":""},{"$f":"IF(COUNT(Table_Eco[[#This Row],[1er Versement]:[3ème Versement]])=0,\"\",SUM(Table_Eco[[#This Row],[1er Versement]:[3ème Versement]]))","v":""}]
["11003546C",{"$f":"IF(COUNT(Table_Eco[[#This Row],[Total Frais]:[Total Vers]])=0,\"\",IF(Table_Eco[[#This Row],[Total Vers]]=\"\",Table_Eco[[#This Row],[Total Frais]],Table_Eco[[#This Row],[Total Frais]]-Table_Eco[[#This Row],[Total Vers]]))","v":""},{"$f":"IF(COUNT(Table_Eco[[#This Row],[Inscription Physique]:[Frais Annexe]])=0,\"\",SUM(Table_Eco[[#This Row],[Inscription Physique]:[Frais Annexe]]))","v":""},{"$f":"IF(COUNT(Table_Eco[[#This Row],[1er Versement]:[3ème Versement]])=0,\"\",SUM(Table_Eco[[#This Row],[1er Versement]:[3ème Versement]]))","v":""}]
["11003729N",{"$f":"IF(COUNT(Table_Eco[[#This Row],[Total Frais]:[Total Vers]])=0,\"\",IF(Table_Eco[[#This Row],[Total Vers]]=\"\",Table_Eco[[#This Row],[Total Frais]],Table_Eco[[#This Row],[Total Frais]]-Table_Eco[[#This Row],[Total Vers]]))","v":""},{"$f":"IF(COUNT(Table_Eco[[#This Row],[Inscription Physique]:[Frais Annexe]])=0,\"\",SUM(Table_Eco[[#This Row],[Inscription Physique]:[Frais Annexe]]))","v":""},{"$f":"IF(COUNT(Table_Eco[[#This Row],[1er Versement]:[3ème Versement]])=0,\"\",SUM(Table_Eco[[#This Row],[1er Versement]:[3ème Versement]]))","v":""}]
["11004117P",{"$f":"IF(COUNT(Table_Eco[[#This Row],[Total Frais]:[Total Vers]])=0,\"\",IF(Table_Eco[[#This Row],[Total Vers]]=\"\",Table_Eco[[#This Row],[Total Frais]],Table_Eco[[#This Row],[Total Frais]]-Table_Eco[[#This Row],[Total Vers]]))","v":""},{"$f":"IF(COUNT(Table_Eco[[#This Row],[Inscription Physique]:[Frais Annexe]])=0,\"\",SUM(Table_Eco[[#This Row],[Inscription Physique]:[Frais Annexe]]))","v":""},{"$f":"IF(COUNT(Table_Eco[[#This Row],[1er Versement]:[3ème Versement]])=0,\"\",SUM(Table_Eco[[#This Row],[1er Versement]:[3ème Versement]]))","v":""}]
["12134456H",{"$f":"IF(COUNT(Table_Eco[[#This Row],[Total Frais]:[Total Vers]])=0,\"\",IF(Table_Eco[[#This Row],[Total Vers]]=\"\",Table_Eco[[#This Row],[Total Frais]],Table_Eco[[#This Row],[Total Frais]]-Table_Eco[[#This Row],[Total Vers]]))","v":""},{"$f":"IF(COUNT(Table_Eco[[#This Row],[Inscription Physique]:[Frais Annexe]])=0,\"\",SUM(Table_Eco[[#This Row],[Inscription Physique]:[Frais Annexe]]))","v":""},{"$f":"IF(COUNT(Table_Eco[[#This Row],[1er Versement]:[3ème Versement]])=0,\"\",SUM(Table_Eco[[#This Row],[1er Versement]:[3ème Versement]]))","v":""}]
["12134576D",{"$f":"IF(COUNT(Table_Eco[[#This Row],[Total Frais]:[Total Vers]])=0,\"\",IF(Table_Eco[[#This Row],[Total Vers]]=\"\",Table_Eco[[#This Row],[Total Frais]],Table_Eco[[#This Row],[Total Frais]]-Table_Eco[[#This Row],[Total Vers]]))","v":""},{"$f":"IF(COUNT(Table_Eco[[#This Row],[Inscription Physique]:[Frais Annexe]])=0,\"\",SUM(Table_Eco[[#This Row],[Inscription Physique]:[Frais Annexe]]))","v":""},{"$f":"IF(COUNT(Table_Eco[[#This Row],[1er Versement]:[3ème Versement]])=0,\"\",SUM(Table_Eco[[#This Row],[1er Versement]:[3ème Versement]]))","v":""}]
["12180433R",{"$f":"IF(COUNT(Table_Eco[[#This Row],[Total Frais]:[Total Vers]])=0,\"\",IF(Table_Eco[[#This Row],[Total Vers]]=\"\",Table_Eco[[#This Row],[Total Frais]],Table_Eco[[#This Row],[Total Frais]]-Table_Eco[[#This Row],[Total Vers]]))","v":""},{"$f":"IF(COUNT(Table_Eco[[#This Row],[Inscription Physique]:[Frais Annexe]])=0,\"\",SUM(Table_Eco[[#This Row],[Inscription Physique]:[Frais Annexe]]))","v":""},{"$f":"IF(COUNT(Table_Eco[[#This Row],[1er Versement]:[3ème Versement]])=0,\"\",SUM(Table_Eco[[#This Row],[1er Versement]:[3ème Versement]]))","v":""}]
["12181990G",{"$f":"IF(COUNT(Table_Eco[[#This Row],[Total Frais]:[Total Vers]])=0,\"\",IF(Table_Eco[[#This Row],[Total Vers]]=\"\",Table_Eco[[#This Row],[Total Frais]],Table_Eco[[#This Row],[Total Frais]]-Table_Eco[[#This Row],[Total Vers]]))","v":""},{"$f":"IF(COUNT(Table_Eco[[#This Row],[Inscription Physique]:[Frais Annexe]])=0,\"\",SUM(Table_Eco[[#This Row],[Inscription Physique]:[Frais Annexe]]))","v":""},{"$f":"IF(COUNT(Table_Eco[[#This Row],[1er Versement]:[3ème Versement]])=0,\"\",SUM(Table_Eco[[#This Row],[1er Versement]:[3ème Versement]]))","v":""}]
["12181991F",{"$f":"IF(COUNT(Table_Eco[[#This Row],[Total Frais]:[Total Vers]])=0,\"\",IF(Table_Eco[[#This Row],[Total Vers]]=\"\",Table_Eco[[#This Row],[Total Frais]],Table_Eco[[#This Row],[Total Frais]]-Table_Eco[[#This Row],[Total Vers]]))","v":""},{"$f":"IF(COUNT(Table_Eco[[#This Row],[Inscription Physique]:[Frais Annexe]])=0,\"\",SUM(Table_Eco[[#This Row],[Inscription Physique]:[Frais Annexe]]))","v":""},{"$f":"IF(COUNT(Table_Eco[[#This Row],[1er Versement]:[3ème Versement]])=0,\"\",SUM(Table_Eco[[#This Row],[1er Versement]:[3ème Versement]]))","v":""}]
["12181992W",{"$f":"IF(COUNT(Table_Eco[[#This Row],[Total Frais]:[Total Vers]])=0,\"\",IF(Table_Eco[[#This Row],[Total Vers]]=\"\",Table_Eco[[#This Row],[Total Frais]],Table_Eco[[#This Row],[Total Frais]]-Table_Eco[[#This Row],[Total Vers]]))","v":""},{"$f":"IF(COUNT(Table_Eco[[#This Row],[Inscription Physique]:[Frais Annexe]])=0,\"\",SUM(Table_Eco[[#This Row],[Inscription Physique]:[Frais Annexe]]))","v":""},{"$f":"IF(COUNT(Table_Eco[[#This Row],[1er Versement]:[3ème Versement]])=0,\"\",SUM(Table_Eco[[#This Row],[1er Versement]:[3ème Versement]]))","v":""}]
["12182130D",{"$f":"IF(COUNT(Table_Eco[[#This Row],[Total Frais]:[Total Vers]])=0,\"\",IF(Table_Eco[[#This Row],[Total Vers]]=\"\",Table_Eco[[#This Row],[Total Frais]],Table_Eco[[#This Row],[Total Frais]]-Table_Eco[[#This Row],[Total Vers]]))","v":""},{"$f":"IF(COUNT(Table_Eco[[#This Row],[Inscription Physique]:[Frais Annexe]])=0,\"\",SUM(Table_Eco[[#This Row],[Inscription Physique]:[Frais Annexe]]))","v":""},{"$f":"IF(COUNT(Table_Eco[[#This Row],[1er Versement]:[3ème Versement]])=0,\"\",SUM(Table_Eco[[#This Row],[1er Versement]:[3ème Versement]]))","v":""}]
["13217171Q",{"$f":"IF(COUNT(Table_Eco[[#This Row],[Total Frais]:[Total Vers]])=0,\"\",IF(Table_Eco[[#This Row],[Total Vers]]=\"\",Table_Eco[[#This Row],[Total Frais]],Table_Eco[[#This Row],[Total Frais]]-Table_Eco[[#This Row],[Total Vers]]))","v":""},{"$f":"IF(COUNT(Table_Eco[[#This Row],[Inscription Physique]:[Frais Annexe]])=0,\"\",SUM(Table_Eco[[#This Row],[Inscription Physique]:[Frais Annexe]]))","v":""},{"$f":"IF(COUNT(Table_Eco[[#This Row],[1er Versement]:[3ème Versement]])=0,\"\",SUM(Table_Eco[[#This Row],[1er Versement]:[3ème Versement]]))","v":""}]
["13217173G",{"$f":"IF(COUNT(Table_Eco[[#This Row],[Total Frais]:[Total Vers]])=0,\"\",IF(Table_Eco[[#This Row],[Total Vers]]=\"\",Table_Eco[[#This Row],[Total Frais]],Table_Eco[[#This Row],[Total Frais]]-Table_Eco[[#This Row],[Total Vers]]))","v":""},{"$f":"IF(COUNT(Table_Eco[[#This Row],[Inscription Physique]:[Frais Annexe]])=0,\"\",SUM(Table_Eco[[#This Row],[Inscription Physique]:[Frais Annexe]]))","v":""},{"$f":"IF(COUNT(Table_Eco[[#This Row],[1er Versement]:[3ème Versement]])=0,\"\",SUM(Table_Eco[[#This Row],[1er Versement]:[3ème Versement]]))","v":""}]
["13217658G",{"$f":"IF(COUNT(Table_Eco[[#This Row],[Total Frais]:[Total Vers]])=0,\"\",IF(Table_Eco[[#This Row],[Total Vers]]=\"\",Table_Eco[[#This Row],[Total Frais]],Table_Eco[[#This Row],[Total Frais]]-Table_Eco[[#This Row],[Total Vers]]))","v":""},{"$f":"IF(COUNT(Table_Eco[[#This Row],[Inscription Physique]:[Frais Annexe]])=0,\"\",SUM(Table_Eco[[#This Row],[Inscription Physique]:[Frais Annexe]]))","v":""},{"$f":"IF(COUNT(Table_Eco[[#This Row],[1er Versement]:[3ème Versement]])=0,\"\",SUM(Table_Eco[[#This Row],[1er Versement]:[3ème Versement]]))","v":""}]
["13217659H",{"$f":"IF(COUNT(Table_Eco[[#This Row],[Total Frais]:[Total Vers]])=0,\"\",IF(Table_Eco[[#This Row],[Total Vers]]=\"\",Table_Eco[[#This Row],[Total Frais]],Table_Eco[[#This Row],[Total Frais]]-Table_Eco[[#This Row],[Total Vers]]))","v":""},{"$f":"IF(COUNT(Table_Eco[[#This Row],[Inscription Physique]:[Frais Annexe]])=0,\"\",SUM(Table_Eco[[#This Row],[Inscription Physique]:[Frais Annexe]]))","v":""},{"$f":"IF(COUNT(Table_Eco[[#This Row],[1er Versement]:[3ème Versement]])=0,\"\",SUM(Table_Eco[[#This Row],[1er Versement]:[3ème Versement]]))","v":""}]
["13217660P",{"$f":"IF(COUNT(Table_Eco[[#This Row],[Total Frais]:[Total Vers]])=0,\"\",IF(Table_Eco[[#This Row],[Total Vers]]=\"\",Table_Eco[[#This Row],[Total Frais]],Table_Eco[[#This Row],[Total Frais]]-Table_Eco[[#This Row],[Total Vers]]))","v":""},{"$f":"IF(COUNT(Table_Eco[[#This Row],[Inscription Physique]:[Frais Annexe]])=0,\"\",SUM(Table_Eco[[#This Row],[Inscription Physique]:[Frais Annexe]]))","v":""},{"$f":"IF(COUNT(Table_Eco[[#This Row],[1er Versement]:[3ème Versement]])=0,\"\",SUM(Table_Eco[[#This Row],[1er Versement]:[3ème Versement]]))","v":""}]
["13217671M",{"$f":"IF(COUNT(Table_Eco[[#This Row],[Total Frais]:[Total Vers]])=0,\"\",IF(Table_Eco[[#This Row],[Total Vers]]=\"\",Table_Eco[[#This Row],[Total Frais]],Table_Eco[[#This Row],[Total Frais]]-Table_Eco[[#This Row],[Total Vers]]))","v":""},{"$f":"IF(COUNT(Table_Eco[[#This Row],[Inscription Physique]:[Frais Annexe]])=0,\"\",SUM(Table_Eco[[#This Row],[Inscription Physique]:[Frais Annexe]]))","v":""},{"$f":"IF(COUNT(Table_Eco[[#This Row],[1er Versement]:[3ème Versement]])=0,\"\",SUM(Table_Eco[[#This Row],[1er Versement]:[3ème Versement]]))","v":""}]
["13217826G",{"$f":"IF(COUNT(Table_Eco[[#This Row],[Total Frais]:[Total Vers]])=0,\"\",IF(Table_Eco[[#This Row],[Total Vers]]=\"\",Table_Eco[[#This Row],[Total Frais]],Table_Eco[[#This Row],[Total Frais]]-Table_Eco[[#This Row],[Total Vers]]))","v":""},{"$f":"IF(COUNT(Table_Eco[[#This Row],[Inscription Physique]:[Frais Annexe]])=0,\"\",SUM(Table_Eco[[#This Row],[Inscription Physique]:[Frais Annexe]]))","v":""},{"$f":"IF(COUNT(Table_Eco[[#This Row],[1er Versement]:[3ème Versement]])=0,\"\",SUM(Table_Eco[[#This Row],[1er Versement]:[3ème Versement]]))","v":""}]
["14238228G",{"$f":"IF(COUNT(Table_Eco[[#This Row],[Total Frais]:[Total Vers]])=0,\"\",IF(Table_Eco[[#This Row],[Total Vers]]=\"\",Table_Eco[[#This Row],[Total Frais]],Table_Eco[[#This Row],[Total Frais]]-Table_Eco[[#This Row],[Total Vers]]))","v":""},{"$f":"IF(COUNT(Table_Eco[[#This Row],[Inscription Physique]:[Frais Annexe]])=0,\"\",SUM(Table_Eco[[#This Row],[Inscription Physique]:[Frais Annexe]]))","v":""},{"$f":"IF(COUNT(Table_Eco[[#This Row],[1er Versement]:[3ème Versement]])=0,\"\",SUM(Table_Eco[[#This Row],[1er Versement]:[3ème Versement]]))","v":""}]
["14239542Z",{"$f":"IF(COUNT(Table_Eco[[#This Row],[Total Frais]:[Total Vers]])=0,\"\",IF(Table_Eco[[#This Row],[Total Vers]]=\"\",Table_Eco[[#This Row],[Total Frais]],Table_Eco[[#This Row],[Total Frais]]-Table_Eco[[#This Row],[Total Vers]]))","v":""},{"$f":"IF(COUNT(Table_Eco[[#This Row],[Inscription Physique]:[Frais Annexe]])=0,\"\",SUM(Table_Eco[[#This Row],[Inscription Physique]:[Frais Annexe]]))","v":""},{"$f":"IF(COUNT(Table_Eco[[#This Row],[1er Versement]:[3ème Versement]])=0,\"\",SUM(Table_Eco[[#This Row],[1er Versement]:[3ème Versement]]))","v":""}]
["14239543S",{"$f":"IF(COUNT(Table_Eco[[#This Row],[Total Frais]:[Total Vers]])=0,\"\",IF(Table_Eco[[#This Row],[Total Vers]]=\"\",Table_Eco[[#This Row],[Total Frais]],Table_Eco[[#This Row],[Total Frais]]-Table_Eco[[#This Row],[Total Vers]]))","v":""},{"$f":"IF(COUNT(Table_Eco[[#This Row],[Inscription Physique]:[Frais Annexe]])=0,\"\",SUM(Table_Eco[[#This Row],[Inscription Physique]:[Frais Annexe]]))","v":""},{"$f":"IF(COUNT(Table_Eco[[#This Row],[1er Versement]:[3ème Versement]])=0,\"\",SUM(Table_Eco[[#This Row],[1er Versement]:[3ème Versement]]))","v":""}]
["14239544T",{"$f":"IF(COUNT(Table_Eco[[#This Row],[Total Frais]:[Total Vers]])=0,\"\",IF(Table_Eco[[#This Row],[Total Vers]]=\"\",Table_Eco[[#This Row],[Total Frais]],Table_Eco[[#This Row],[Total Frais]]-Table_Eco[[#This Row],[Total Vers]]))","v":""},{"$f":"IF(COUNT(Table_Eco[[#This Row],[Inscription Physique]:[Frais Annexe]])=0,\"\",SUM(Table_Eco[[#This Row],[Inscription Physique]:[Frais Annexe]]))","v":""},{"$f":"IF(COUNT(Table_Eco[[#This Row],[1er Versement]:[3ème Versement]])=0,\"\",SUM(Table_Eco[[#This Row],[1er Versement]:[3ème Versement]]))","v":""}]
["14239688W",{"$f":"IF(COUNT(Table_Eco[[#This Row],[Total Frais]:[Total Vers]])=0,\"\",IF(Table_Eco[[#This Row],[Total Vers]]=\"\",Table_Eco[[#This Row],[Total Frais]],Table_Eco[[#This Row],[Total Frais]]-Table_Eco[[#This Row],[Total Vers]]))","v":""},{"$f":"IF(COUNT(Table_Eco[[#This Row],[Inscription Physique]:[Frais Annexe]])=0,\"\",SUM(Table_Eco[[#This Row],[Inscription Physique]:[Frais Annexe]]))","v":""},{"$f":"IF(COUNT(Table_Eco[[#This Row],[1er Versement]:[3ème Versement]])=0,\"\",SUM(Table_Eco[[#This Row],[1er Versement]:[3ème Versement]]))","v":""}]
["14239690E",{"$f":"IF(COUNT(Table_Eco[[#This Row],[Total Frais]:[Total Vers]])=0,\"\",IF(Table_Eco[[#This Row],[Total Vers]]=\"\",Table_Eco[[#This Row],[Total Frais]],Table_Eco[[#This Row],[Total Frais]]-Table_Eco[[#This Row],[Total Vers]]))","v":""},{"$f":"IF(COUNT(Table_Eco[[#This Row],[Inscription Physique]:[Frais Annexe]])=0,\"\",SUM(Table_Eco[[#This Row],[Inscription Physique]:[Frais Annexe]]))","v":""},{"$f":"IF(COUNT(Table_Eco[[#This Row],[1er Versement]:[3ème Versement]])=0,\"\",SUM(Table_Eco[[#This Row],[1er Versement]:[3ème Versement]]))","v":""}]
["14239830P",{"$f":"IF(COUNT(Table_Eco[[#This Row],[Total Frais]:[Total Vers]])=0,\"\",IF(Table_Eco[[#This Row],[Total Vers]]=\"\",Table_Eco[[#This Row],[Total Frais]],Table_Eco[[#This Row],[Total Frais]]-Table_Eco[[#This Row],[Total Vers]]))","v":""},{"$f":"IF(COUNT(Table_Eco[[#This Row],[Inscription Physique]:[Frais Annexe]])=0,\"\",SUM(Table_Eco[[#This Row],[Inscription Physique]:[Frais Annexe]]))","v":""},{"$f":"IF(COUNT(Table_Eco[[#This Row],[1er Versement]:[3ème Versement]])=0,\"\",SUM(Table_Eco[[#This Row],[1er Versement]:[3ème Versement]]))","v":""}]
["14239831N",{"$f":"IF(COUNT(Table_Eco[[#This Row],[Total Frais]:[Total Vers]])=0,\"\",IF(Table_Eco[[#This Row],[Total Vers]]=\"\",Table_Eco[[#This Row],[Total Frais]],Table_Eco[[#This Row],[Total Frais]]-Table_Eco[[#This Row],[Total Vers]]))","v":""},{"$f":"IF(COUNT(Table_Eco[[#This Row],[Inscription Physique]:[Frais Annexe]])=0,\"\",SUM(Table_Eco[[#This Row],[Inscription Physique]:[Frais Annexe]]))","v":""},{"$f":"IF(COUNT(Table_Eco[[#This Row],[1er Versement]:[3ème Versement]])=0,\"\",SUM(Table_Eco[[#This Row],[1er Versement]:[3ème Versement]]))","v":""}]
["201121T",{"$f":"IF(COUNT(Table_Eco[[#This Row],[Total Frais]:[Total Vers]])=0,\"\",IF(Table_Eco[[#This Row],[Total Vers]]=\"\",Table_Eco[[#This Row],[Total Frais]],Table_Eco[[#This Row],[Total Frais]]-Table_Eco[[#This Row],[Total Vers]]))","v":""},{"$f":"IF(COUNT(Table_Eco[[#This Row],[Inscription Physique]:[Frais Annexe]])=0,\"\",SUM(Table_Eco[[#This Row],[Inscription Physique]:[Frais Annexe]]))","v":""},{"$f":"IF(COUNT(Table_Eco[[#This Row],[1er Versement]:[3ème Versement]])=0,\"\",SUM(Table_Eco[[#This Row],[1er Versement]:[3ème Versement]]))","v":""}]
["21220201Y",{"$f":"IF(COUNT(Table_Eco[[#This Row],[Total Frais]:[Total Vers]])=0,\"\",IF(Table_Eco[[#This Row],[Total Vers]]=\"\",Table_Eco[[#This Row],[Total Frais]],Table_Eco[[#This Row],[Total Frais]]-Table_Eco[[#This Row],[Total Vers]]))","v":""},{"$f":"IF(COUNT(Table_Eco[[#This Row],[Inscription Physique]:[Frais Annexe]])=0,\"\",SUM(Table_Eco[[#This Row],[Inscription Physique]:[Frais Annexe]]))","v":""},{"$f":"IF(COUNT(Table_Eco[[#This Row],[1er Versement]:[3ème Versement]])=0,\"\",SUM(Table_Eco[[#This Row],[1er Versement]:[3ème Versement]]))","v":""}]
["21222123B",{"$f":"IF(COUNT(Table_Eco[[#This Row],[Total Frais]:[Total Vers]])=0,\"\",IF(Table_Eco[[#This Row],[Total Vers]]=\"\",Table_Eco[[#This Row],[Total Frais]],Table_Eco[[#This Row],[Total Frais]]-Table_Eco[[#This Row],[Total Vers]]))","v":""},{"$f":"IF(COUNT(Table_Eco[[#This Row],[Inscription Physique]:[Frais Annexe]])=0,\"\",SUM(Table_Eco[[#This Row],[Inscription Physique]:[Frais Annexe]]))","v":""},{"$f":"IF(COUNT(Table_Eco[[#This Row],[1er Versement]:[3ème Versement]])=0,\"\",SUM(Table_Eco[[#This Row],[1er Versement]:[3ème Versement]]))","v":""}]
["22020201J",{"$f":"IF(COUNT(Table_Eco[[#This Row],[Total Frais]:[Total Vers]])=0,\"\",IF(Table_Eco[[#This Row],[Total Vers]]=\"\",Table_Eco[[#This Row],[Total Frais]],Table_Eco[[#This Row],[Total Frais]]-Table_Eco[[#This Row],[Total Vers]]))","v":""},{"$f":"IF(COUNT(Table_Eco[[#This Row],[Inscription Physique]:[Frais Annexe]])=0,\"\",SUM(Table_Eco[[#This Row],[Inscription Physique]:[Frais Annexe]]))","v":""},{"$f":"IF(COUNT(Table_Eco[[#This Row],[1er Versement]:[3ème Versement]])=0,\"\",SUM(Table_Eco[[#This Row],[1er Versement]:[3ème Versement]]))","v":""}]
["22101214L",{"$f":"IF(COUNT(Table_Eco[[#This Row],[Total Frais]:[Total Vers]])=0,\"\",IF(Table_Eco[[#This Row],[Total Vers]]=\"\",Table_Eco[[#This Row],[Total Frais]],Table_Eco[[#This Row],[Total Frais]]-Table_Eco[[#This Row],[Total Vers]]))","v":""},{"$f":"IF(COUNT(Table_Eco[[#This Row],[Inscription Physique]:[Frais Annexe]])=0,\"\",SUM(Table_Eco[[#This Row],[Inscription Physique]:[Frais Annexe]]))","v":""},{"$f":"IF(COUNT(Table_Eco[[#This Row],[1er Versement]:[3ème Versement]])=0,\"\",SUM(Table_Eco[[#This Row],[1er Versement]:[3ème Versement]]))","v":""}]
["22452158H",{"$f":"IF(COUNT(Table_Eco[[#This Row],[Total Frais]:[Total Vers]])=0,\"\",IF(Table_Eco[[#This Row],[Total Vers]]=\"\",Table_Eco[[#This Row],[Total Frais]],Table_Eco[[#This Row],[Total Frais]]-Table_Eco[[#This Row],[Total Vers]]))","v":""},{"$f":"IF(COUNT(Table_Eco[[#This Row],[Inscription Physique]:[Frais Annexe]])=0,\"\",SUM(Table_Eco[[#This Row],[Inscription Physique]:[Frais Annexe]]))","v":""},{"$f":"IF(COUNT(Table_Eco[[#This Row],[1er Versement]:[3ème Versement]])=0,\"\",SUM(Table_Eco[[#This Row],[1er Versement]:[3ème Versement]]))","v":""}]
["22545485F",{"$f":"IF(COUNT(Table_Eco[[#This Row],[Total Frais]:[Total Vers]])=0,\"\",IF(Table_Eco[[#This Row],[Total Vers]]=\"\",Table_Eco[[#This Row],[Total Frais]],Table_Eco[[#This Row],[Total Frais]]-Table_Eco[[#This Row],[Total Vers]]))","v":""},{"$f":"IF(COUNT(Table_Eco[[#This Row],[Inscription Physique]:[Frais Annexe]])=0,\"\",SUM(Table_Eco[[#This Row],[Inscription Physique]:[Frais Annexe]]))","v":""},{"$f":"IF(COUNT(Table_Eco[[#This Row],[1er Versement]:[3ème Versement]])=0,\"\",SUM(Table_Eco[[#This Row],[1er Versement]:[3ème Versement]]))","v":""}]
["22758799P",{"$f":"IF(COUNT(Table_Eco[[#This Row],[Total Frais]:[Total Vers]])=0,\"\",IF(Table_Eco[[#This Row],[Total Vers]]=\"\",Table_Eco[[#This Row],[Total Frais]],Table_Eco[[#This Row],[Total Frais]]-Table_Eco[[#This Row],[Total Vers]]))","v":""},{"$f":"IF(COUNT(Table_Eco[[#This Row],[Inscription Physique]:[Frais Annexe]])=0,\"\",SUM(Table_Eco[[#This Row],[Inscription Physique]:[Frais Annexe]]))","v":""},{"$f":"IF(COUNT(Table_Eco[[#This Row],[1er Versement]:[3ème Versement]])=0,\"\",SUM(Table_Eco[[#This Row],[1er Versement]:[3ème Versement]]))","v":""}]
["23525452M",{"$f":"IF(COUNT(Table_Eco[[#This Row],[Total Frais]:[Total Vers]])=0,\"\",IF(Table_Eco[[#This Row],[Total Vers]]=\"\",Table_Eco[[#This Row],[Total Frais]],Table_Eco[[#This Row],[Total Frais]]-Table_Eco[[#This Row],[Total Vers]]))","v":""},{"$f":"IF(COUNT(Table_Eco[[#This Row],[Inscription Physique]:[Frais Annexe]])=0,\"\",SUM(Table_Eco[[#This Row],[Inscription Physique]:[Frais Annexe]]))","v":""},{"$f":"IF(COUNT(Table_Eco[[#This Row],[1er Versement]:[3ème Versement]])=0,\"\",SUM(Table_Eco[[#This Row],[1er Versement]:[3ème Versement]]))","v":""}]
["41454122K",{"$f":"IF(COUNT(Table_Eco[[#This Row],[Total Frais]:[Total Vers]])=0,\"\",IF(Table_Eco[[#This Row],[Total Vers]]=\"\",Table_Eco[[#This Row],[Total Frais]],Table_Eco[[#This Row],[Total Frais]]-Table_Eco[[#This Row],[Total Vers]]))","v":""},{"$f":"IF(COUNT(Table_Eco[[#This Row],[Inscription Physique]:[Frais Annexe]])=0,\"\",SUM(Table_Eco[[#This Row],[Inscription Physique]:[Frais Annexe]]))","v":""},{"$f":"IF(COUNT(Table_Eco[[#This Row],[1er Versement]:[3ème Versement]])=0,\"\",SUM(Table_Eco[[#This Row],[1er Versement]:[3ème Versement]]))","v":""}]
["Total",null,null,null,null,null,null,null,null,null,{"$f":"SUBTOTAL(109,Table_Eco[Inscription Physique])","v":0},{"$f":"SUBTOTAL(109,Table_Eco[Frais Examen])","v":0},{"$f":"SUBTOTAL(109,Table_Eco[Frais Annexe])","v":0},{"$f":"SUBTOTAL(109,Table_Eco[1er Versement])","v":0},{"$f":"SUBTOTAL(109,Table_Eco[2ème Versement])","v":0},{"$f":"SUBTOTAL(109,Table_Eco[3ème Versement])","v":0}]

{"sheet":"BDElèves","index":20,"n_rows":47,"n_cols":19,"rows_kept":47,"cut":false,"hidden":true,"merged":[]}
["Matricule","Nom","Prénoms","Sexe","Date Naissance","Classe","Statut","BEPC","Langue","Red","Lieu Nais","Photo","Nationalité","N Père","N Mère","Adresse","Rési","Tel","Email"]
["201121T","AAMA","AZE","F","2000-03-12","6ème3","Non affecté",null,null,"R","GOUV",null,"Ivoirienne"]
["14239688W","ABETSO","KOTTY ANGE FULGENCE","M","2004-03-29","6ème3","Affecté"]
["11000345T","ABI","SESSE AIMÉE","F","1999-09-12","6ème3","Affecté"]
["14239830P","ABOTTO","N'GORAN MARTIN","M","2001-12-20","6ème3","Affecté"]
["13217658G","ABY","AMENAN FRANCELINE OR.","F","2000-05-30","6ème3","Affecté"]
["14238228G","ADAYI","COMOE FLORENCE","F","2001-01-18","6ème3","Affecté"]
["13217826G","ADJAFFI","ADJOUA MARIE CLAIRE","F","1998-08-11","6ème3","Affecté"]
["13217171Q","ADJE","AMOUAN ANGE MARIE","F","1999-11-29","6ème3","Affecté"]
["11002332P","ADJE","YAPO ABEL","M","1997-09-08","6ème3","Affecté"]
["07100101T","ADJED","DJEDJANE CHRISTELLE","F","1997-01-01","6ème3","Affecté",null,null,"R"]
["11002377R","ADJED","HAYOU EDITH FLORE","F","2000-03-27","6ème3","Affecté"]
["06121925W","ADJED","MARC ARTHUR","M","2004-04-14","6ème3","Affecté"]
["13217173G","ADJO","MARIE ANGE CHRISTELLE","F","2000-09-10","6ème3","Affecté"]
["14239542Z","ADJOUMAN","AKEBIE GERMAINE","F","2001-11-02","6ème3","Affecté"]
["11002711V","ADODJO","GÉRARD","M","1999-08-08","3ème3","Affecté","OR","ALL"]
["11002605Z","ADON","ANDRÉA HERMANE C.","F","2000-01-30","6ème3","Affecté"]
["14239543S","ADON","KAKOU SERGE","M","2000-09-16","6ème3","Affecté"]
["14239544T","ADOU","AMA EDITH","F","2003-03-12","6ème3","Affecté",null,null,null,null,null,"Ivoirienne"]
["12181991F","ADOU","N'GORAN CHRISTINE","F","1997-12-29","6ème3","Affecté"]
["12181990G","ADOU","ELISÉE","F","1997-06-07","6ème3","Affecté"]
["13217660P","ADOU","KPANGNI DIANE","F","1999-09-17","6ème3","Affecté"]
["13217659H","ADOU","GRACE PHEBE BEATRICE DORIA","F","2001-09-29","6ème3","Affecté"]
["11003546C","AFFI","ETTIEN MARINA","F","1997-10-15","6ème3","Affecté"]
["10120411L","AFFI","KAMENAN JACQUES","M","2000-01-02","6ème3","Affecté"]
["14239831N","AFFI","N'DRI FLORENTIN","M","2003-10-22","6ème3","Affecté"]
["12180433R","AFFLOMOU","AMOAN FRANÇOISE","F","2001-02-27","6ème3","Affecté"]
["12181992W","AFFROUMOU","NANDO JEAN CLAUDE FABRICE","M","1998-08-18","3ème1","Affecté"]
["12181993X","AGAMA","ETTIEN AGNES","F","2000-01-22","6ème3","Affecté"]
["11003729N","AGAMA","AKISSI ESTELLE","F","1998-05-12","6ème3","Affecté"]
["11004117P","AGNIN","KACOU ELOI","M","2000-01-01","6ème3","Affecté"]
["12182130D","AGNIN","OI AGNIN MARTIN","M","2001-06-24","6ème3","Affecté"]
["13217671M","AGNIN","KACOU JEAN ULRICH","M","2001-04-28","6ème3","Affecté"]
["14239690E","AGOUSSI","AKE JOSEPH","M","2000-01-27","6ème3","Affecté"]
["41454122K","DOUE","Yeou","F","2022-02-10","6ème3","Affecté",null,null,null,"E",null,"Ivoirienne"]
["25336588J","KASSI","Jeremi","M","2000-02-10","6ème3","Affecté",null,null,null,"OUME",null,"Ivoirienne"]
["10120456R","KOFFI","KOUASSI BLAISE","M","2000-05-02","3ème3","Affecté",null,"ALL","R",null,"\\Images\\Mat2.jpg"]
["22758799P","KOFFI","Cisse","F","2000-02-12","6ème3","Affecté",null,null,null,"ADZOPE",null,"Ivoirienne"]
["22020201J","KONE","Isaac","F","2000-02-12","6ème3","Affecté",null,null,null,"ABOBO",null,"Ivoirienne"]
["12134576D","KOUASSI","KONAN FRANCK","M","1978-12-12","6ème3","Affecté"]
["22101214L","KOUASSI","Joseph","M","2020-05-10","6ème3","Affecté",null,null,"R","ABOBO",null,"Ivoirienne"]
["12134456H","SAWADOGO","MARCEL","M","2004-04-13","6ème3","Affecté"]
["21222123B","SERY","Serge","F","2022-01-10","6ème3","Affecté",null,null,"R","YOPOUGON",null,"Ivoirienne"]
["22545485F","YEOU","Ben","F","2020-05-01","6ème3","Affecté",null,null,null,"BOUNA",null,"Ivoirienne"]
["22452158H","ZADY","Irene","F","2022-02-01","6ème3","Affecté",null,null,null,"ABENG",null,"Ivoirienne"]
["21220201Y","ZADY","Melaine","M","2000-02-01","6ème3","Affecté",null,null,"R","FERKE",null,"Ivoirienne"]
["23525452M","ZADY","Zere","F","2000-01-02","TleG1A","Affecté",null,null,"R","GOH",null,"Ivoirienne"]

{"sheet":"BDT1","index":21,"n_rows":47,"n_cols":19,"rows_kept":47,"cut":false,"hidden":true,"merged":[]}
["Matricule","Classe","Total","Moy","CF","OG","EE","HG","MATH","AP","PC","SVT","EPS","COND","EDHC","LV2","FR","PHIL","ANG"]
["07100101T",{"$f":"VLOOKUP(Table_T1[[#This Row],[Matricule]],Table_Elève[[Matricule]:[Classe]],6,0)","v":"6ème3"},{"$f":"IF(COUNT(Table_T1[[#This Row],[CF]:[ANG]])=0,\"\",ROUND(SUM(Table_T1[[#This Row],[CF]:[ANG]]),2))","v":58},{"$f":"IF(Table_T1[Total]=\"\",\"\",ROUND(AVERAGE(Table_T1[[#This Row],[CF]:[ANG]]),2))","v":7.25},null,null,null,2,2,null,11,2,15,16,null,4,6]
["10120411L",{"$f":"VLOOKUP(Table_T1[[#This Row],[Matricule]],Table_Elève[[Matricule]:[Classe]],6,0)","v":"6ème3"},{"$f":"IF(COUNT(Table_T1[[#This Row],[CF]:[ANG]])=0,\"\",ROUND(SUM(Table_T1[[#This Row],[CF]:[ANG]]),2))","v":111},{"$f":"IF(Table_T1[Total]=\"\",\"\",ROUND(AVERAGE(Table_T1[[#This Row],[CF]:[ANG]]),2))","v":9.25},4,15,6,6,3,16,10,1,14,14,17,5]
["10120456R",{"$f":"VLOOKUP(Table_T1[[#This Row],[Matricule]],Table_Elève[[Matricule]:[Classe]],6,0)","v":"3ème3"},{"$f":"IF(COUNT(Table_T1[[#This Row],[CF]:[ANG]])=0,\"\",ROUND(SUM(Table_T1[[#This Row],[CF]:[ANG]]),2))","v":187},{"$f":"IF(Table_T1[Total]=\"\",\"\",ROUND(AVERAGE(Table_T1[[#This Row],[CF]:[ANG]]),2))","v":12.47},10,11,14,11,11,10,18,15,12,15,15,10,11,12,12]
["11000345T",{"$f":"VLOOKUP(Table_T1[[#This Row],[Matricule]],Table_Elève[[Matricule]:[Classe]],6,0)","v":"6ème3"},{"$f":"IF(COUNT(Table_T1[[#This Row],[CF]:[ANG]])=0,\"\",ROUND(SUM(Table_T1[[#This Row],[CF]:[ANG]]),2))","v":15},{"$f":"IF(Table_T1[Total]=\"\",\"\",ROUND(AVERAGE(Table_T1[[#This Row],[CF]:[ANG]]),2))","v":15},null,null,null,null,null,null,null,null,null,null,null,15]
["11002332P",{"$f":"VLOOKUP(Table_T1[[#This Row],[Matricule]],Table_Elève[[Matricule]:[Classe]],6,0)","v":"6ème3"},{"$f":"IF(COUNT(Table_T1[[#This Row],[CF]:[ANG]])=0,\"\",ROUND(SUM(Table_T1[[#This Row],[CF]:[ANG]]),2))","v":138},{"$f":"IF(Table_T1[Total]=\"\",\"\",ROUND(AVERAGE(Table_T1[[#This Row],[CF]:[ANG]]),2))","v":11.5},17,17,8,13,1,16,12,3,16,17,15,3]
["11002377R",{"$f":"VLOOKUP(Table_T1[[#This Row],[Matricule]],Table_Elève[[Matricule]:[Classe]],6,0)","v":"6ème3"},{"$f":"IF(COUNT(Table_T1[[#This Row],[CF]:[ANG]])=0,\"\",ROUND(SUM(Table_T1[[#This Row],[CF]:[ANG]]),2))","v":115},{"$f":"IF(Table_T1[Total]=\"\",\"\",ROUND(AVERAGE(Table_T1[[#This Row],[CF]:[ANG]]),2))","v":9.58},2,16,7,8,2,16,11,2,15,16,16,4]
["11002605Z",{"$f":"VLOOKUP(Table_T1[[#This Row],[Matricule]],Table_Elève[[Matricule]:[Classe]],6,0)","v":"6ème3"},{"$f":"IF(COUNT(Table_T1[[#This Row],[CF]:[ANG]])=0,\"\",ROUND(SUM(Table_T1[[#This Row],[CF]:[ANG]]),2))","v":101},{"$f":"IF(Table_T1[Total]=\"\",\"\",ROUND(AVERAGE(Table_T1[[#This Row],[CF]:[ANG]]),2))","v":9.18},5,15,6,9,3,16,10,1,"Disp",14,17,5]
["11002711V",{"$f":"VLOOKUP(Table_T1[[#This Row],[Matricule]],Table_Elève[[Matricule]:[Classe]],6,0)","v":"3ème3"},{"$f":"IF(COUNT(Table_T1[[#This Row],[CF]:[ANG]])=0,\"\",ROUND(SUM(Table_T1[[#This Row],[CF]:[ANG]]),2))","v":103},{"$f":"IF(Table_T1[Total]=\"\",\"\",ROUND(AVERAGE(Table_T1[[#This Row],[CF]:[ANG]]),2))","v":9.36},13,15,6,3,3,16,10,1,null,14,17,5]
["11003546C",{"$f":"VLOOKUP(Table_T1[[#This Row],[Matricule]],Table_Elève[[Matricule]:[Classe]],6,0)","v":"6ème3"},{"$f":"IF(COUNT(Table_T1[[#This Row],[CF]:[ANG]])=0,\"\",ROUND(SUM(Table_T1[[#This Row],[CF]:[ANG]]),2))","v":122},{"$f":"IF(Table_T1[Total]=\"\",\"\",ROUND(AVERAGE(Table_T1[[#This Row],[CF]:[ANG]]),2))","v":10.17},10,17,8,4,1,16,12,3,16,17,15,3]
["11003729N",{"$f":"VLOOKUP(Table_T1[[#This Row],[Matricule]],Table_Elève[[Matricule]:[Classe]],6,0)","v":"6ème3"},{"$f":"IF(COUNT(Table_T1[[#This Row],[CF]:[ANG]])=0,\"\",ROUND(SUM(Table_T1[[#This Row],[CF]:[ANG]]),2))","v":138},{"$f":"IF(Table_T1[Total]=\"\",\"\",ROUND(AVERAGE(Table_T1[[#This Row],[CF]:[ANG]]),2))","v":11.5},14,17,8,16,1,16,12,3,16,17,15,3]
["11004117P",{"$f":"VLOOKUP(Table_T1[[#This Row],[Matricule]],Table_Elève[[Matricule]:[Classe]],6,0)","v":"6ème3"},{"$f":"IF(COUNT(Table_T1[[#This Row],[CF]:[ANG]])=0,\"\",ROUND(SUM(Table_T1[[#This Row],[CF]:[ANG]]),2))","v":117},{"$f":"IF(Table_T1[Total]=\"\",\"\",ROUND(AVERAGE(Table_T1[[#This Row],[CF]:[ANG]]),2))","v":9.75},7,16,7,5,2,16,11,2,15,16,16,4]
["12134456H",{"$f":"VLOOKUP(Table_T1[[#This Row],[Matricule]],Table_Elève[[Matricule]:[Classe]],6,0)","v":"6ème3"},{"$f":"IF(COUNT(Table_T1[[#This Row],[CF]:[ANG]])=0,\"\",ROUND(SUM(Table_T1[[#This Row],[CF]:[ANG]]),2))","v":138},{"$f":"IF(Table_T1[Total]=\"\",\"\",ROUND(AVERAGE(Table_T1[[#This Row],[CF]:[ANG]]),2))","v":12.55},19,17,8,14,1,16,12,3,16,17,15]
["12134576D",{"$f":"VLOOKUP(Table_T1[[#This Row],[Matricule]],Table_Elève[[Matricule]:[Classe]],6,0)","v":"6ème3"},{"$f":"IF(COUNT(Table_T1[[#This Row],[CF]:[ANG]])=0,\"\",ROUND(SUM(Table_T1[[#This Row],[CF]:[ANG]]),2))","v":131},{"$f":"IF(Table_T1[Total]=\"\",\"\",ROUND(AVERAGE(Table_T1[[#This Row],[CF]:[ANG]]),2))","v":11.91},18,17,8,8,1,16,12,3,16,17,15]
["12180433R",{"$f":"VLOOKUP(Table_T1[[#This Row],[Matricule]],Table_Elève[[Matricule]:[Classe]],6,0)","v":"6ème3"},{"$f":"IF(COUNT(Table_T1[[#This Row],[CF]:[ANG]])=0,\"\",ROUND(SUM(Table_T1[[#This Row],[CF]:[ANG]]),2))","v":129},{"$f":"IF(Table_T1[Total]=\"\",\"\",ROUND(AVERAGE(Table_T1[[#This Row],[CF]:[ANG]]),2))","v":11.73},5,17,8,19,1,16,12,3,16,17,15]
["12181990G",{"$f":"VLOOKUP(Table_T1[[#This Row],[Matricule]],Table_Elève[[Matricule]:[Classe]],6,0)","v":"6ème3"},{"$f":"IF(COUNT(Table_T1[[#This Row],[CF]:[ANG]])=0,\"\",ROUND(SUM(Table_T1[[#This Row],[CF]:[ANG]]),2))","v":132},{"$f":"IF(Table_T1[Total]=\"\",\"\",ROUND(AVERAGE(Table_T1[[#This Row],[CF]:[ANG]]),2))","v":11},17,15,6,14,3,16,10,1,14,14,17,5]
["12181991F",{"$f":"VLOOKUP(Table_T1[[#This Row],[Matricule]],Table_Elève[[Matricule]:[Classe]],6,0)","v":"6ème3"},{"$f":"IF(COUNT(Table_T1[[#This Row],[CF]:[ANG]])=0,\"\",ROUND(SUM(Table_T1[[#This Row],[CF]:[ANG]]),2))","v":140},{"$f":"IF(Table_T1[Total]=\"\",\"\",ROUND(AVERAGE(Table_T1[[#This Row],[CF]:[ANG]]),2))","v":11.67},20,16,7,15,2,16,11,2,15,16,16,4]
["12181992W",{"$f":"VLOOKUP(Table_T1[[#This Row],[Matricule]],Table_Elève[[Matricule]:[Classe]],6,0)","v":"3ème1"},{"$f":"IF(COUNT(Table_T1[[#This Row],[CF]:[ANG]])=0,\"\",ROUND(SUM(Table_T1[[#This Row],[CF]:[ANG]]),2))","v":109},{"$f":"IF(Table_T1[Total]=\"\",\"\",ROUND(AVERAGE(Table_T1[[#This Row],[CF]:[ANG]]),2))","v":9.91},8,17,8,10,1,16,12,3,16,null,15,3]
["12181993X",{"$f":"VLOOKUP(Table_T1[[#This Row],[Matricule]],Table_Elève[[Matricule]:[Classe]],6,0)","v":"6ème3"},{"$f":"IF(COUNT(Table_T1[[#This Row],[CF]:[ANG]])=0,\"\",ROUND(SUM(Table_T1[[#This Row],[CF]:[ANG]]),2))","v":127},{"$f":"IF(Table_T1[Total]=\"\",\"\",ROUND(AVERAGE(Table_T1[[#This Row],[CF]:[ANG]]),2))","v":10.58},11,16,7,11,2,16,11,2,15,16,16,4]
["12182130D",{"$f":"VLOOKUP(Table_T1[[#This Row],[Matricule]],Table_Elève[[Matricule]:[Classe]],6,0)","v":"6ème3"},{"$f":"IF(COUNT(Table_T1[[#This Row],[CF]:[ANG]])=0,\"\",ROUND(SUM(Table_T1[[#This Row],[CF]:[ANG]]),2))","v":127},{"$f":"IF(Table_T1[Total]=\"\",\"\",ROUND(AVERAGE(Table_T1[[#This Row],[CF]:[ANG]]),2))","v":10.58},14,15,6,12,3,16,10,1,14,14,17,5]
["13217171Q",{"$f":"VLOOKUP(Table_T1[[#This Row],[Matricule]],Table_Elève[[Matricule]:[Classe]],6,0)","v":"6ème3"},{"$f":"IF(COUNT(Table_T1[[#This Row],[CF]:[ANG]])=0,\"\",ROUND(SUM(Table_T1[[#This Row],[CF]:[ANG]]),2))","v":111},{"$f":"IF(Table_T1[Total]=\"\",\"\",ROUND(AVERAGE(Table_T1[[#This Row],[CF]:[ANG]]),2))","v":10.09},7,16,7,3,2,16,11,2,15,16,16]
["13217173G",{"$f":"VLOOKUP(Table_T1[[#This Row],[Matricule]],Table_Elève[[Matricule]:[Classe]],6,0)","v":"6ème3"},{"$f":"IF(COUNT(Table_T1[[#This Row],[CF]:[ANG]])=0,\"\",ROUND(SUM(Table_T1[[#This Row],[CF]:[ANG]]),2))","v":129},{"$f":"IF(Table_T1[Total]=\"\",\"\",ROUND(AVERAGE(Table_T1[[#This Row],[CF]:[ANG]]),2))","v":11.73},11,16,7,17,2,16,11,2,15,16,16]
["13217658G",{"$f":"VLOOKUP(Table_T1[[#This Row],[Matricule]],Table_Elève[[Matricule]:[Classe]],6,0)","v":"6ème3"},{"$f":"IF(COUNT(Table_T1[[#This Row],[CF]:[ANG]])=0,\"\",ROUND(SUM(Table_T1[[#This Row],[CF]:[ANG]]),2))","v":123},{"$f":"IF(Table_T1[Total]=\"\",\"\",ROUND(AVERAGE(Table_T1[[#This Row],[CF]:[ANG]]),2))","v":11.18},16,16,7,6,2,16,11,2,15,16,16]
["13217659H",{"$f":"VLOOKUP(Table_T1[[#This Row],[Matricule]],Table_Elève[[Matricule]:[Classe]],6,0)","v":"6ème3"},{"$f":"IF(COUNT(Table_T1[[#This Row],[CF]:[ANG]])=0,\"\",ROUND(SUM(Table_T1[[#This Row],[CF]:[ANG]]),2))","v":123},{"$f":"IF(Table_T1[Total]=\"\",\"\",ROUND(AVERAGE(Table_T1[[#This Row],[CF]:[ANG]]),2))","v":11.18},2,16,7,20,2,16,11,2,15,16,16]
["13217660P",{"$f":"VLOOKUP(Table_T1[[#This Row],[Matricule]],Table_Elève[[Matricule]:[Classe]],6,0)","v":"6ème3"},{"$f":"IF(COUNT(Table_T1[[#This Row],[CF]:[ANG]])=0,\"\",ROUND(SUM(Table_T1[[#This Row],[CF]:[ANG]]),2))","v":122},{"$f":"IF(Table_T1[Total]=\"\",\"\",ROUND(AVERAGE(Table_T1[[#This Row],[CF]:[ANG]]),2))","v":11.09},8,15,6,18,3,16,10,1,14,14,17]
["13217671M",{"$f":"VLOOKUP(Table_T1[[#This Row],[Matricule]],Table_Elève[[Matricule]:[Classe]],6,0)","v":"6ème3"},{"$f":"IF(COUNT(Table_T1[[#This Row],[CF]:[ANG]])=0,\"\",ROUND(SUM(Table_T1[[#This Row],[CF]:[ANG]]),2))","v":98},{"$f":"IF(Table_T1[Total]=\"\",\"\",ROUND(AVERAGE(Table_T1[[#This Row],[CF]:[ANG]]),2))","v":8.91},1,15,6,1,3,16,10,1,14,14,17]
["13217826G",{"$f":"VLOOKUP(Table_T1[[#This Row],[Matricule]],Table_Elève[[Matricule]:[Classe]],6,0)","v":"6ème3"},{"$f":"IF(COUNT(Table_T1[[#This Row],[CF]:[ANG]])=0,\"\",ROUND(SUM(Table_T1[[#This Row],[CF]:[ANG]]),2))","v":119},{"$f":"IF(Table_T1[Total]=\"\",\"\",ROUND(AVERAGE(Table_T1[[#This Row],[CF]:[ANG]]),2))","v":10.82},6,16,7,12,2,16,11,2,15,16,16]
["14238228G",{"$f":"VLOOKUP(Table_T1[[#This Row],[Matricule]],Table_Elève[[Matricule]:[Classe]],6,0)","v":"6ème3"},{"$f":"IF(COUNT(Table_T1[[#This Row],[CF]:[ANG]])=0,\"\",ROUND(SUM(Table_T1[[#This Row],[CF]:[ANG]]),2))","v":125},{"$f":"IF(Table_T1[Total]=\"\",\"\",ROUND(AVERAGE(Table_T1[[#This Row],[CF]:[ANG]]),2))","v":11.36},15,16,7,9,2,16,11,2,15,16,16]
["14239542Z",{"$f":"VLOOKUP(Table_T1[[#This Row],[Matricule]],Table_Elève[[Matricule]:[Classe]],6,0)","v":"6ème3"},{"$f":"IF(COUNT(Table_T1[[#This Row],[CF]:[ANG]])=0,\"\",ROUND(SUM(Table_T1[[#This Row],[CF]:[ANG]]),2))","v":112},{"$f":"IF(Table_T1[Total]=\"\",\"\",ROUND(AVERAGE(Table_T1[[#This Row],[CF]:[ANG]]),2))","v":10.18},3,15,6,13,3,16,10,1,14,14,17]
["14239543S",{"$f":"VLOOKUP(Table_T1[[#This Row],[Matricule]],Table_Elève[[Matricule]:[Classe]],6,0)","v":"6ème3"},{"$f":"IF(COUNT(Table_T1[[#This Row],[CF]:[ANG]])=0,\"\",ROUND(SUM(Table_T1[[#This Row],[CF]:[ANG]]),2))","v":118},{"$f":"IF(Table_T1[Total]=\"\",\"\",ROUND(AVERAGE(Table_T1[[#This Row],[CF]:[ANG]]),2))","v":10.73},12,15,6,10,3,16,10,1,14,14,17]
["14239544T",{"$f":"VLOOKUP(Table_T1[[#This Row],[Matricule]],Table_Elève[[Matricule]:[Classe]],6,0)","v":"6ème3"},{"$f":"IF(COUNT(Table_T1[[#This Row],[CF]:[ANG]])=0,\"\",ROUND(SUM(Table_T1[[#This Row],[CF]:[ANG]]),2))","v":49},{"$f":"IF(Table_T1[Total]=\"\",\"\",ROUND(AVERAGE(Table_T1[[#This Row],[CF]:[ANG]]),2))","v":8.17},null,null,null,4,3,null,10,1,null,14,17]
["14239688W",{"$f":"VLOOKUP(Table_T1[[#This Row],[Matricule]],Table_Elève[[Matricule]:[Classe]],6,0)","v":"6ème3"},{"$f":"IF(COUNT(Table_T1[[#This Row],[CF]:[ANG]])=0,\"\",ROUND(SUM(Table_T1[[#This Row],[CF]:[ANG]]),2))","v":160.81},{"$f":"IF(Table_T1[Total]=\"\",\"\",ROUND(AVERAGE(Table_T1[[#This Row],[CF]:[ANG]]),2))","v":14.62},14,18,9,13.5,17.71,16,14.4,13.4,14.8,15,15]
["14239690E",{"$f":"VLOOKUP(Table_T1[[#This Row],[Matricule]],Table_Elève[[Matricule]:[Classe]],6,0)","v":"6ème3"},{"$f":"IF(COUNT(Table_T1[[#This Row],[CF]:[ANG]])=0,\"\",ROUND(SUM(Table_T1[[#This Row],[CF]:[ANG]]),2))","v":125},{"$f":"IF(Table_T1[Total]=\"\",\"\",ROUND(AVERAGE(Table_T1[[#This Row],[CF]:[ANG]]),2))","v":11.36},9,17,8,11,1,16,12,3,16,17,15]
["14239830P",{"$f":"VLOOKUP(Table_T1[[#This Row],[Matricule]],Table_Elève[[Matricule]:[Classe]],6,0)","v":"6ème3"},{"$f":"IF(COUNT(Table_T1[[#This Row],[CF]:[ANG]])=0,\"\",ROUND(SUM(Table_T1[[#This Row],[CF]:[ANG]]),2))","v":123},{"$f":"IF(Table_T1[Total]=\"\",\"\",ROUND(AVERAGE(Table_T1[[#This Row],[CF]:[ANG]]),2))","v":11.18},13,17,8,5,1,16,12,3,16,17,15]
["14239831N",{"$f":"VLOOKUP(Table_T1[[#This Row],[Matricule]],Table_Elève[[Matricule]:[Classe]],6,0)","v":"6ème3"},{"$f":"IF(COUNT(Table_T1[[#This Row],[CF]:[ANG]])=0,\"\",ROUND(SUM(Table_T1[[#This Row],[CF]:[ANG]]),2))","v":122},{"$f":"IF(Table_T1[Total]=\"\",\"\",ROUND(AVERAGE(Table_T1[[#This Row],[CF]:[ANG]]),2))","v":11.09},19,15,6,7,3,16,10,1,14,14,17]
["201121T",{"$f":"VLOOKUP(Table_T1[[#This Row],[Matricule]],Table_Elève[[Matricule]:[Classe]],6,0)","v":"6ème3"},{"$f":"IF(COUNT(Table_T1[[#This Row],[CF]:[ANG]])=0,\"\",ROUND(SUM(Table_T1[[#This Row],[CF]:[ANG]]),2))","v":180},{"$f":"IF(Table_T1[Total]=\"\",\"\",ROUND(AVERAGE(Table_T1[[#This Row],[CF]:[ANG]]),2))","v":13.85},12,11,11,15,19,11,11,17,10,11,null,19,16,17]
["22020201J",{"$f":"VLOOKUP(Table_T1[[#This Row],[Matricule]],Table_Elève[[Matricule]:[Classe]],6,0)","v":"6ème3"},{"$f":"IF(COUNT(Table_T1[[#This Row],[CF]:[ANG]])=0,\"\",ROUND(SUM(Table_T1[[#This Row],[CF]:[ANG]]),2))","v":199},{"$f":"IF(Table_T1[Total]=\"\",\"\",ROUND(AVERAGE(Table_T1[[#This Row],[CF]:[ANG]]),2))","v":13.27},11,12,14,16,18,10,11,12,14,12,11,10,16,18,14]
[]
[]
[]
[]
[]
[]
[]
[]
[]
[null,null,null,null,null,null,null,null,null,null,null,null,"Disp"]

{"sheet":"BDT2","index":22,"n_rows":47,"n_cols":19,"rows_kept":47,"cut":false,"hidden":true,"merged":[]}
["Matricule","Classe","Total","Moy","CF","OG","EE","HG","MATH","AP","PC","SVT","EPS","COND","EDHC","LV2","FR","PHIL","ANG"]
["07100101T",{"$f":"VLOOKUP(Table_T2[[#This Row],[Matricule]],Table_Elève[[Matricule]:[Classe]],6,0)","v":"6ème3"},{"$f":"IF(COUNT(Table_T2[[#This Row],[CF]:[ANG]])=0,\"\",ROUND(SUM(Table_T2[[#This Row],[CF]:[ANG]]),2))","v":63},{"$f":"IF(Table_T2[Total]=\"\",\"\",ROUND(AVERAGE(Table_T2[[#This Row],[CF]:[ANG]]),2))","v":7},null,null,5,2,2,null,11,2,15,16,null,4,6]
["10120411L",{"$f":"VLOOKUP(Table_T2[[#This Row],[Matricule]],Table_Elève[[Matricule]:[Classe]],6,0)","v":"6ème3"},{"$f":"IF(COUNT(Table_T2[[#This Row],[CF]:[ANG]])=0,\"\",ROUND(SUM(Table_T2[[#This Row],[CF]:[ANG]]),2))","v":111},{"$f":"IF(Table_T2[Total]=\"\",\"\",ROUND(AVERAGE(Table_T2[[#This Row],[CF]:[ANG]]),2))","v":9.25},4,15,6,6,3,16,10,1,14,14,17,5]
["10120456R",{"$f":"VLOOKUP(Table_T2[[#This Row],[Matricule]],Table_Elève[[Matricule]:[Classe]],6,0)","v":"3ème3"},{"$f":"IF(COUNT(Table_T2[[#This Row],[CF]:[ANG]])=0,\"\",ROUND(SUM(Table_T2[[#This Row],[CF]:[ANG]]),2))","v":220},{"$f":"IF(Table_T2[Total]=\"\",\"\",ROUND(AVERAGE(Table_T2[[#This Row],[CF]:[ANG]]),2))","v":14.67},16,17,16,16,18,11,11,18,11,15,14,15,13,18,11]
["11000345T",{"$f":"VLOOKUP(Table_T2[[#This Row],[Matricule]],Table_Elève[[Matricule]:[Classe]],6,0)","v":"6ème3"},{"$f":"IF(COUNT(Table_T2[[#This Row],[CF]:[ANG]])=0,\"\",ROUND(SUM(Table_T2[[#This Row],[CF]:[ANG]]),2))","v":116},{"$f":"IF(Table_T2[Total]=\"\",\"\",ROUND(AVERAGE(Table_T2[[#This Row],[CF]:[ANG]]),2))","v":9.67},1,17,8,7,1,16,12,3,16,17,15,3]
["11002332P",{"$f":"VLOOKUP(Table_T2[[#This Row],[Matricule]],Table_Elève[[Matricule]:[Classe]],6,0)","v":"6ème3"},{"$f":"IF(COUNT(Table_T2[[#This Row],[CF]:[ANG]])=0,\"\",ROUND(SUM(Table_T2[[#This Row],[CF]:[ANG]]),2))","v":138},{"$f":"IF(Table_T2[Total]=\"\",\"\",ROUND(AVERAGE(Table_T2[[#This Row],[CF]:[ANG]]),2))","v":11.5},17,17,8,13,1,16,12,3,16,17,15,3]
["11002377R",{"$f":"VLOOKUP(Table_T2[[#This Row],[Matricule]],Table_Elève[[Matricule]:[Classe]],6,0)","v":"6ème3"},{"$f":"IF(COUNT(Table_T2[[#This Row],[CF]:[ANG]])=0,\"\",ROUND(SUM(Table_T2[[#This Row],[CF]:[ANG]]),2))","v":""},{"$f":"IF(Table_T2[Total]=\"\",\"\",ROUND(AVERAGE(Table_T2[[#This Row],[CF]:[ANG]]),2))","v":""}]
["11002605Z",{"$f":"VLOOKUP(Table_T2[[#This Row],[Matricule]],Table_Elève[[Matricule]:[Classe]],6,0)","v":"6ème3"},{"$f":"IF(COUNT(Table_T2[[#This Row],[CF]:[ANG]])=0,\"\",ROUND(SUM(Table_T2[[#This Row],[CF]:[ANG]]),2))","v":115},{"$f":"IF(Table_T2[Total]=\"\",\"\",ROUND(AVERAGE(Table_T2[[#This Row],[CF]:[ANG]]),2))","v":9.58},5,15,6,9,3,16,10,1,14,14,17,5]
["11002711V",{"$f":"VLOOKUP(Table_T2[[#This Row],[Matricule]],Table_Elève[[Matricule]:[Classe]],6,0)","v":"3ème3"},{"$f":"IF(COUNT(Table_T2[[#This Row],[CF]:[ANG]])=0,\"\",ROUND(SUM(Table_T2[[#This Row],[CF]:[ANG]]),2))","v":39},{"$f":"IF(Table_T2[Total]=\"\",\"\",ROUND(AVERAGE(Table_T2[[#This Row],[CF]:[ANG]]),2))","v":9.75},5,null,null,11,null,null,8,null,null,null,null,15]
["11003546C",{"$f":"VLOOKUP(Table_T2[[#This Row],[Matricule]],Table_Elève[[Matricule]:[Classe]],6,0)","v":"6ème3"},{"$f":"IF(COUNT(Table_T2[[#This Row],[CF]:[ANG]])=0,\"\",ROUND(SUM(Table_T2[[#This Row],[CF]:[ANG]]),2))","v":122},{"$f":"IF(Table_T2[Total]=\"\",\"\",ROUND(AVERAGE(Table_T2[[#This Row],[CF]:[ANG]]),2))","v":10.17},10,17,8,4,1,16,12,3,16,17,15,3]
["11003729N",{"$f":"VLOOKUP(Table_T2[[#This Row],[Matricule]],Table_Elève[[Matricule]:[Classe]],6,0)","v":"6ème3"},{"$f":"IF(COUNT(Table_T2[[#This Row],[CF]:[ANG]])=0,\"\",ROUND(SUM(Table_T2[[#This Row],[CF]:[ANG]]),2))","v":138},{"$f":"IF(Table_T2[Total]=\"\",\"\",ROUND(AVERAGE(Table_T2[[#This Row],[CF]:[ANG]]),2))","v":11.5},14,17,8,16,1,16,12,3,16,17,15,3]
["11004117P",{"$f":"VLOOKUP(Table_T2[[#This Row],[Matricule]],Table_Elève[[Matricule]:[Classe]],6,0)","v":"6ème3"},{"$f":"IF(COUNT(Table_T2[[#This Row],[CF]:[ANG]])=0,\"\",ROUND(SUM(Table_T2[[#This Row],[CF]:[ANG]]),2))","v":117},{"$f":"IF(Table_T2[Total]=\"\",\"\",ROUND(AVERAGE(Table_T2[[#This Row],[CF]:[ANG]]),2))","v":9.75},7,16,7,5,2,16,11,2,15,16,16,4]
["12134456H",{"$f":"VLOOKUP(Table_T2[[#This Row],[Matricule]],Table_Elève[[Matricule]:[Classe]],6,0)","v":"6ème3"},{"$f":"IF(COUNT(Table_T2[[#This Row],[CF]:[ANG]])=0,\"\",ROUND(SUM(Table_T2[[#This Row],[CF]:[ANG]]),2))","v":138},{"$f":"IF(Table_T2[Total]=\"\",\"\",ROUND(AVERAGE(Table_T2[[#This Row],[CF]:[ANG]]),2))","v":12.55},19,17,8,14,1,16,12,3,16,17,15]
["12134576D",{"$f":"VLOOKUP(Table_T2[[#This Row],[Matricule]],Table_Elève[[Matricule]:[Classe]],6,0)","v":"6ème3"},{"$f":"IF(COUNT(Table_T2[[#This Row],[CF]:[ANG]])=0,\"\",ROUND(SUM(Table_T2[[#This Row],[CF]:[ANG]]),2))","v":131},{"$f":"IF(Table_T2[Total]=\"\",\"\",ROUND(AVERAGE(Table_T2[[#This Row],[CF]:[ANG]]),2))","v":11.91},18,17,8,8,1,16,12,3,16,17,15]
["12180433R",{"$f":"VLOOKUP(Table_T2[[#This Row],[Matricule]],Table_Elève[[Matricule]:[Classe]],6,0)","v":"6ème3"},{"$f":"IF(COUNT(Table_T2[[#This Row],[CF]:[ANG]])=0,\"\",ROUND(SUM(Table_T2[[#This Row],[CF]:[ANG]]),2))","v":129},{"$f":"IF(Table_T2[Total]=\"\",\"\",ROUND(AVERAGE(Table_T2[[#This Row],[CF]:[ANG]]),2))","v":11.73},5,17,8,19,1,16,12,3,16,17,15]
["12181990G",{"$f":"VLOOKUP(Table_T2[[#This Row],[Matricule]],Table_Elève[[Matricule]:[Classe]],6,0)","v":"6ème3"},{"$f":"IF(COUNT(Table_T2[[#This Row],[CF]:[ANG]])=0,\"\",ROUND(SUM(Table_T2[[#This Row],[CF]:[ANG]]),2))","v":132},{"$f":"IF(Table_T2[Total]=\"\",\"\",ROUND(AVERAGE(Table_T2[[#This Row],[CF]:[ANG]]),2))","v":11},17,15,6,14,3,16,10,1,14,14,17,5]
["12181991F",{"$f":"VLOOKUP(Table_T2[[#This Row],[Matricule]],Table_Elève[[Matricule]:[Classe]],6,0)","v":"6ème3"},{"$f":"IF(COUNT(Table_T2[[#This Row],[CF]:[ANG]])=0,\"\",ROUND(SUM(Table_T2[[#This Row],[CF]:[ANG]]),2))","v":140},{"$f":"IF(Table_T2[Total]=\"\",\"\",ROUND(AVERAGE(Table_T2[[#This Row],[CF]:[ANG]]),2))","v":11.67},20,16,7,15,2,16,11,2,15,16,16,4]
["12181992W",{"$f":"VLOOKUP(Table_T2[[#This Row],[Matricule]],Table_Elève[[Matricule]:[Classe]],6,0)","v":"3ème1"},{"$f":"IF(COUNT(Table_T2[[#This Row],[CF]:[ANG]])=0,\"\",ROUND(SUM(Table_T2[[#This Row],[CF]:[ANG]]),2))","v":126},{"$f":"IF(Table_T2[Total]=\"\",\"\",ROUND(AVERAGE(Table_T2[[#This Row],[CF]:[ANG]]),2))","v":10.5},8,17,8,10,1,16,12,3,16,17,15,3]
["12181993X",{"$f":"VLOOKUP(Table_T2[[#This Row],[Matricule]],Table_Elève[[Matricule]:[Classe]],6,0)","v":"6ème3"},{"$f":"IF(COUNT(Table_T2[[#This Row],[CF]:[ANG]])=0,\"\",ROUND(SUM(Table_T2[[#This Row],[CF]:[ANG]]),2))","v":111},{"$f":"IF(Table_T2[Total]=\"\",\"\",ROUND(AVERAGE(Table_T2[[#This Row],[CF]:[ANG]]),2))","v":10.09},11,16,7,11,2,null,11,2,15,16,16,4]
["12182130D",{"$f":"VLOOKUP(Table_T2[[#This Row],[Matricule]],Table_Elève[[Matricule]:[Classe]],6,0)","v":"6ème3"},{"$f":"IF(COUNT(Table_T2[[#This Row],[CF]:[ANG]])=0,\"\",ROUND(SUM(Table_T2[[#This Row],[CF]:[ANG]]),2))","v":127},{"$f":"IF(Table_T2[Total]=\"\",\"\",ROUND(AVERAGE(Table_T2[[#This Row],[CF]:[ANG]]),2))","v":10.58},14,15,6,12,3,16,10,1,14,14,17,5]
["13217171Q",{"$f":"VLOOKUP(Table_T2[[#This Row],[Matricule]],Table_Elève[[Matricule]:[Classe]],6,0)","v":"6ème3"},{"$f":"IF(COUNT(Table_T2[[#This Row],[CF]:[ANG]])=0,\"\",ROUND(SUM(Table_T2[[#This Row],[CF]:[ANG]]),2))","v":111},{"$f":"IF(Table_T2[Total]=\"\",\"\",ROUND(AVERAGE(Table_T2[[#This Row],[CF]:[ANG]]),2))","v":10.09},7,16,7,3,2,16,11,2,15,16,16]
["13217173G",{"$f":"VLOOKUP(Table_T2[[#This Row],[Matricule]],Table_Elève[[Matricule]:[Classe]],6,0)","v":"6ème3"},{"$f":"IF(COUNT(Table_T2[[#This Row],[CF]:[ANG]])=0,\"\",ROUND(SUM(Table_T2[[#This Row],[CF]:[ANG]]),2))","v":129},{"$f":"IF(Table_T2[Total]=\"\",\"\",ROUND(AVERAGE(Table_T2[[#This Row],[CF]:[ANG]]),2))","v":11.73},11,16,7,17,2,16,11,2,15,16,16]
["13217658G",{"$f":"VLOOKUP(Table_T2[[#This Row],[Matricule]],Table_Elève[[Matricule]:[Classe]],6,0)","v":"6ème3"},{"$f":"IF(COUNT(Table_T2[[#This Row],[CF]:[ANG]])=0,\"\",ROUND(SUM(Table_T2[[#This Row],[CF]:[ANG]]),2))","v":123},{"$f":"IF(Table_T2[Total]=\"\",\"\",ROUND(AVERAGE(Table_T2[[#This Row],[CF]:[ANG]]),2))","v":11.18},16,16,7,6,2,16,11,2,15,16,16]
["13217659H",{"$f":"VLOOKUP(Table_T2[[#This Row],[Matricule]],Table_Elève[[Matricule]:[Classe]],6,0)","v":"6ème3"},{"$f":"IF(COUNT(Table_T2[[#This Row],[CF]:[ANG]])=0,\"\",ROUND(SUM(Table_T2[[#This Row],[CF]:[ANG]]),2))","v":123},{"$f":"IF(Table_T2[Total]=\"\",\"\",ROUND(AVERAGE(Table_T2[[#This Row],[CF]:[ANG]]),2))","v":11.18},2,16,7,20,2,16,11,2,15,16,16]
["13217660P",{"$f":"VLOOKUP(Table_T2[[#This Row],[Matricule]],Table_Elève[[Matricule]:[Classe]],6,0)","v":"6ème3"},{"$f":"IF(COUNT(Table_T2[[#This Row],[CF]:[ANG]])=0,\"\",ROUND(SUM(Table_T2[[#This Row],[CF]:[ANG]]),2))","v":122},{"$f":"IF(Table_T2[Total]=\"\",\"\",ROUND(AVERAGE(Table_T2[[#This Row],[CF]:[ANG]]),2))","v":11.09},8,15,6,18,3,16,10,1,14,14,17]
["13217671M",{"$f":"VLOOKUP(Table_T2[[#This Row],[Matricule]],Table_Elève[[Matricule]:[Classe]],6,0)","v":"6ème3"},{"$f":"IF(COUNT(Table_T2[[#This Row],[CF]:[ANG]])=0,\"\",ROUND(SUM(Table_T2[[#This Row],[CF]:[ANG]]),2))","v":98},{"$f":"IF(Table_T2[Total]=\"\",\"\",ROUND(AVERAGE(Table_T2[[#This Row],[CF]:[ANG]]),2))","v":8.91},1,15,6,1,3,16,10,1,14,14,17]
["13217826G",{"$f":"VLOOKUP(Table_T2[[#This Row],[Matricule]],Table_Elève[[Matricule]:[Classe]],6,0)","v":"6ème3"},{"$f":"IF(COUNT(Table_T2[[#This Row],[CF]:[ANG]])=0,\"\",ROUND(SUM(Table_T2[[#This Row],[CF]:[ANG]]),2))","v":119},{"$f":"IF(Table_T2[Total]=\"\",\"\",ROUND(AVERAGE(Table_T2[[#This Row],[CF]:[ANG]]),2))","v":10.82},6,16,7,12,2,16,11,2,15,16,16]
["14238228G",{"$f":"VLOOKUP(Table_T2[[#This Row],[Matricule]],Table_Elève[[Matricule]:[Classe]],6,0)","v":"6ème3"},{"$f":"IF(COUNT(Table_T2[[#This Row],[CF]:[ANG]])=0,\"\",ROUND(SUM(Table_T2[[#This Row],[CF]:[ANG]]),2))","v":125},{"$f":"IF(Table_T2[Total]=\"\",\"\",ROUND(AVERAGE(Table_T2[[#This Row],[CF]:[ANG]]),2))","v":11.36},15,16,7,9,2,16,11,2,15,16,16]
["14239542Z",{"$f":"VLOOKUP(Table_T2[[#This Row],[Matricule]],Table_Elève[[Matricule]:[Classe]],6,0)","v":"6ème3"},{"$f":"IF(COUNT(Table_T2[[#This Row],[CF]:[ANG]])=0,\"\",ROUND(SUM(Table_T2[[#This Row],[CF]:[ANG]]),2))","v":112},{"$f":"IF(Table_T2[Total]=\"\",\"\",ROUND(AVERAGE(Table_T2[[#This Row],[CF]:[ANG]]),2))","v":10.18},3,15,6,13,3,16,10,1,14,14,17]
["14239543S",{"$f":"VLOOKUP(Table_T2[[#This Row],[Matricule]],Table_Elève[[Matricule]:[Classe]],6,0)","v":"6ème3"},{"$f":"IF(COUNT(Table_T2[[#This Row],[CF]:[ANG]])=0,\"\",ROUND(SUM(Table_T2[[#This Row],[CF]:[ANG]]),2))","v":118},{"$f":"IF(Table_T2[Total]=\"\",\"\",ROUND(AVERAGE(Table_T2[[#This Row],[CF]:[ANG]]),2))","v":10.73},12,15,6,10,3,16,10,1,14,14,17]
["14239544T",{"$f":"VLOOKUP(Table_T2[[#This Row],[Matricule]],Table_Elève[[Matricule]:[Classe]],6,0)","v":"6ème3"},{"$f":"IF(COUNT(Table_T2[[#This Row],[CF]:[ANG]])=0,\"\",ROUND(SUM(Table_T2[[#This Row],[CF]:[ANG]]),2))","v":49},{"$f":"IF(Table_T2[Total]=\"\",\"\",ROUND(AVERAGE(Table_T2[[#This Row],[CF]:[ANG]]),2))","v":8.17},null,null,null,4,3,null,10,1,null,14,17]
["14239688W",{"$f":"VLOOKUP(Table_T2[[#This Row],[Matricule]],Table_Elève[[Matricule]:[Classe]],6,0)","v":"6ème3"},{"$f":"IF(COUNT(Table_T2[[#This Row],[CF]:[ANG]])=0,\"\",ROUND(SUM(Table_T2[[#This Row],[CF]:[ANG]]),2))","v":158.81},{"$f":"IF(Table_T2[Total]=\"\",\"\",ROUND(AVERAGE(Table_T2[[#This Row],[CF]:[ANG]]),2))","v":14.44},12,18,9,13.5,17.71,16,14.4,13.4,14.8,15,15]
["14239690E",{"$f":"VLOOKUP(Table_T2[[#This Row],[Matricule]],Table_Elève[[Matricule]:[Classe]],6,0)","v":"6ème3"},{"$f":"IF(COUNT(Table_T2[[#This Row],[CF]:[ANG]])=0,\"\",ROUND(SUM(Table_T2[[#This Row],[CF]:[ANG]]),2))","v":125},{"$f":"IF(Table_T2[Total]=\"\",\"\",ROUND(AVERAGE(Table_T2[[#This Row],[CF]:[ANG]]),2))","v":11.36},9,17,8,11,1,16,12,3,16,17,15]
["14239830P",{"$f":"VLOOKUP(Table_T2[[#This Row],[Matricule]],Table_Elève[[Matricule]:[Classe]],6,0)","v":"6ème3"},{"$f":"IF(COUNT(Table_T2[[#This Row],[CF]:[ANG]])=0,\"\",ROUND(SUM(Table_T2[[#This Row],[CF]:[ANG]]),2))","v":123},{"$f":"IF(Table_T2[Total]=\"\",\"\",ROUND(AVERAGE(Table_T2[[#This Row],[CF]:[ANG]]),2))","v":11.18},13,17,8,5,1,16,12,3,16,17,15]
["14239831N",{"$f":"VLOOKUP(Table_T2[[#This Row],[Matricule]],Table_Elève[[Matricule]:[Classe]],6,0)","v":"6ème3"},{"$f":"IF(COUNT(Table_T2[[#This Row],[CF]:[ANG]])=0,\"\",ROUND(SUM(Table_T2[[#This Row],[CF]:[ANG]]),2))","v":122},{"$f":"IF(Table_T2[Total]=\"\",\"\",ROUND(AVERAGE(Table_T2[[#This Row],[CF]:[ANG]]),2))","v":11.09},19,15,6,7,3,16,10,1,14,14,17]
["201121T",{"$f":"VLOOKUP(Table_T2[[#This Row],[Matricule]],Table_Elève[[Matricule]:[Classe]],6,0)","v":"6ème3"},{"$f":"IF(COUNT(Table_T2[[#This Row],[CF]:[ANG]])=0,\"\",ROUND(SUM(Table_T2[[#This Row],[CF]:[ANG]]),2))","v":175},{"$f":"IF(Table_T2[Total]=\"\",\"\",ROUND(AVERAGE(Table_T2[[#This Row],[CF]:[ANG]]),2))","v":13.46},11,13,15,18,19,5,18,10,10,11,null,11,17,17]
["22020201J",{"$f":"VLOOKUP(Table_T2[[#This Row],[Matricule]],Table_Elève[[Matricule]:[Classe]],6,0)","v":"6ème3"},{"$f":"IF(COUNT(Table_T2[[#This Row],[CF]:[ANG]])=0,\"\",ROUND(SUM(Table_T2[[#This Row],[CF]:[ANG]]),2))","v":""},{"$f":"IF(Table_T2[Total]=\"\",\"\",ROUND(AVERAGE(Table_T2[[#This Row],[CF]:[ANG]]),2))","v":""}]
[]
[null,null,null,null,null,null,null,null,null,null,null,null,"Disp"]
[null,null,null,null,null,null,null,null,null,null,null,null,"Disp"]
[]
[]
[]
[]
[]
[]
[null,null,null,null,null,null,null,null,null,null,null,null,"Disp"]

{"sheet":"Feuil1","index":23,"n_rows":0,"n_cols":0,"rows_kept":0,"cut":false,"hidden":true,"merged":[]}

{"sheet":"BDT3","index":24,"n_rows":37,"n_cols":19,"rows_kept":37,"cut":false,"hidden":true,"merged":[]}
["Matricule","Classe","Total","Moy","CF","OG","EE","HG","MATH","AP","PC","SVT","EPS","COND","EDHC","LV2","FR","PHIL","ANG"]
["07100101T",{"$f":"VLOOKUP(Table_T3[[#This Row],[Matricule]],Table_Elève[[Matricule]:[Classe]],6,0)","v":"6ème3"},{"$f":"IF(COUNT(Table_T3[[#This Row],[CF]:[ANG]])=0,\"\",ROUND(SUM(Table_T3[[#This Row],[CF]:[ANG]]),2))","v":64},{"$f":"IF(Table_T3[Total]=\"\",\"\",ROUND(AVERAGE(Table_T3[[#This Row],[CF]:[ANG]]),2))","v":7.11},null,6,null,2,2,null,11,2,15,16,null,4,6]
["10120411L",{"$f":"VLOOKUP(Table_T3[[#This Row],[Matricule]],Table_Elève[[Matricule]:[Classe]],6,0)","v":"6ème3"},{"$f":"IF(COUNT(Table_T3[[#This Row],[CF]:[ANG]])=0,\"\",ROUND(SUM(Table_T3[[#This Row],[CF]:[ANG]]),2))","v":111},{"$f":"IF(Table_T3[Total]=\"\",\"\",ROUND(AVERAGE(Table_T3[[#This Row],[CF]:[ANG]]),2))","v":9.25},4,15,6,6,3,16,10,1,14,14,17,5]
["10120456R",{"$f":"VLOOKUP(Table_T3[[#This Row],[Matricule]],Table_Elève[[Matricule]:[Classe]],6,0)","v":"3ème3"},{"$f":"IF(COUNT(Table_T3[[#This Row],[CF]:[ANG]])=0,\"\",ROUND(SUM(Table_T3[[#This Row],[CF]:[ANG]]),2))","v":222},{"$f":"IF(Table_T3[Total]=\"\",\"\",ROUND(AVERAGE(Table_T3[[#This Row],[CF]:[ANG]]),2))","v":14.8},16,17,16,16,18,11,11,18,11,15,14,15,13,18,13]
["11000345T",{"$f":"VLOOKUP(Table_T3[[#This Row],[Matricule]],Table_Elève[[Matricule]:[Classe]],6,0)","v":"6ème3"},{"$f":"IF(COUNT(Table_T3[[#This Row],[CF]:[ANG]])=0,\"\",ROUND(SUM(Table_T3[[#This Row],[CF]:[ANG]]),2))","v":116},{"$f":"IF(Table_T3[Total]=\"\",\"\",ROUND(AVERAGE(Table_T3[[#This Row],[CF]:[ANG]]),2))","v":9.67},1,17,8,7,1,16,12,3,16,17,15,3]
["11002332P",{"$f":"VLOOKUP(Table_T3[[#This Row],[Matricule]],Table_Elève[[Matricule]:[Classe]],6,0)","v":"6ème3"},{"$f":"IF(COUNT(Table_T3[[#This Row],[CF]:[ANG]])=0,\"\",ROUND(SUM(Table_T3[[#This Row],[CF]:[ANG]]),2))","v":138},{"$f":"IF(Table_T3[Total]=\"\",\"\",ROUND(AVERAGE(Table_T3[[#This Row],[CF]:[ANG]]),2))","v":11.5},17,17,8,13,1,16,12,3,16,17,15,3]
["11002377R",{"$f":"VLOOKUP(Table_T3[[#This Row],[Matricule]],Table_Elève[[Matricule]:[Classe]],6,0)","v":"6ème3"},{"$f":"IF(COUNT(Table_T3[[#This Row],[CF]:[ANG]])=0,\"\",ROUND(SUM(Table_T3[[#This Row],[CF]:[ANG]]),2))","v":""},{"$f":"IF(Table_T3[Total]=\"\",\"\",ROUND(AVERAGE(Table_T3[[#This Row],[CF]:[ANG]]),2))","v":""}]
["11002605Z",{"$f":"VLOOKUP(Table_T3[[#This Row],[Matricule]],Table_Elève[[Matricule]:[Classe]],6,0)","v":"6ème3"},{"$f":"IF(COUNT(Table_T3[[#This Row],[CF]:[ANG]])=0,\"\",ROUND(SUM(Table_T3[[#This Row],[CF]:[ANG]]),2))","v":115},{"$f":"IF(Table_T3[Total]=\"\",\"\",ROUND(AVERAGE(Table_T3[[#This Row],[CF]:[ANG]]),2))","v":9.58},5,15,6,9,3,16,10,1,14,14,17,5]
["11002711V",{"$f":"VLOOKUP(Table_T3[[#This Row],[Matricule]],Table_Elève[[Matricule]:[Classe]],6,0)","v":"3ème3"},{"$f":"IF(COUNT(Table_T3[[#This Row],[CF]:[ANG]])=0,\"\",ROUND(SUM(Table_T3[[#This Row],[CF]:[ANG]]),2))","v":34},{"$f":"IF(Table_T3[Total]=\"\",\"\",ROUND(AVERAGE(Table_T3[[#This Row],[CF]:[ANG]]),2))","v":11.33},null,null,null,11,null,null,8,null,null,null,null,15]
["11003546C",{"$f":"VLOOKUP(Table_T3[[#This Row],[Matricule]],Table_Elève[[Matricule]:[Classe]],6,0)","v":"6ème3"},{"$f":"IF(COUNT(Table_T3[[#This Row],[CF]:[ANG]])=0,\"\",ROUND(SUM(Table_T3[[#This Row],[CF]:[ANG]]),2))","v":122},{"$f":"IF(Table_T3[Total]=\"\",\"\",ROUND(AVERAGE(Table_T3[[#This Row],[CF]:[ANG]]),2))","v":10.17},10,17,8,4,1,16,12,3,16,17,15,3]
["11003729N",{"$f":"VLOOKUP(Table_T3[[#This Row],[Matricule]],Table_Elève[[Matricule]:[Classe]],6,0)","v":"6ème3"},{"$f":"IF(COUNT(Table_T3[[#This Row],[CF]:[ANG]])=0,\"\",ROUND(SUM(Table_T3[[#This Row],[CF]:[ANG]]),2))","v":138},{"$f":"IF(Table_T3[Total]=\"\",\"\",ROUND(AVERAGE(Table_T3[[#This Row],[CF]:[ANG]]),2))","v":11.5},14,17,8,16,1,16,12,3,16,17,15,3]
["11004117P",{"$f":"VLOOKUP(Table_T3[[#This Row],[Matricule]],Table_Elève[[Matricule]:[Classe]],6,0)","v":"6ème3"},{"$f":"IF(COUNT(Table_T3[[#This Row],[CF]:[ANG]])=0,\"\",ROUND(SUM(Table_T3[[#This Row],[CF]:[ANG]]),2))","v":117},{"$f":"IF(Table_T3[Total]=\"\",\"\",ROUND(AVERAGE(Table_T3[[#This Row],[CF]:[ANG]]),2))","v":9.75},7,16,7,5,2,16,11,2,15,16,16,4]
["12134456H",{"$f":"VLOOKUP(Table_T3[[#This Row],[Matricule]],Table_Elève[[Matricule]:[Classe]],6,0)","v":"6ème3"},{"$f":"IF(COUNT(Table_T3[[#This Row],[CF]:[ANG]])=0,\"\",ROUND(SUM(Table_T3[[#This Row],[CF]:[ANG]]),2))","v":138},{"$f":"IF(Table_T3[Total]=\"\",\"\",ROUND(AVERAGE(Table_T3[[#This Row],[CF]:[ANG]]),2))","v":12.55},19,17,8,14,1,16,12,3,16,17,15]
["12134576D",{"$f":"VLOOKUP(Table_T3[[#This Row],[Matricule]],Table_Elève[[Matricule]:[Classe]],6,0)","v":"6ème3"},{"$f":"IF(COUNT(Table_T3[[#This Row],[CF]:[ANG]])=0,\"\",ROUND(SUM(Table_T3[[#This Row],[CF]:[ANG]]),2))","v":131},{"$f":"IF(Table_T3[Total]=\"\",\"\",ROUND(AVERAGE(Table_T3[[#This Row],[CF]:[ANG]]),2))","v":11.91},18,17,8,8,1,16,12,3,16,17,15]
["12180433R",{"$f":"VLOOKUP(Table_T3[[#This Row],[Matricule]],Table_Elève[[Matricule]:[Classe]],6,0)","v":"6ème3"},{"$f":"IF(COUNT(Table_T3[[#This Row],[CF]:[ANG]])=0,\"\",ROUND(SUM(Table_T3[[#This Row],[CF]:[ANG]]),2))","v":129},{"$f":"IF(Table_T3[Total]=\"\",\"\",ROUND(AVERAGE(Table_T3[[#This Row],[CF]:[ANG]]),2))","v":11.73},5,17,8,19,1,16,12,3,16,17,15]
["12181990G",{"$f":"VLOOKUP(Table_T3[[#This Row],[Matricule]],Table_Elève[[Matricule]:[Classe]],6,0)","v":"6ème3"},{"$f":"IF(COUNT(Table_T3[[#This Row],[CF]:[ANG]])=0,\"\",ROUND(SUM(Table_T3[[#This Row],[CF]:[ANG]]),2))","v":132},{"$f":"IF(Table_T3[Total]=\"\",\"\",ROUND(AVERAGE(Table_T3[[#This Row],[CF]:[ANG]]),2))","v":11},17,15,6,14,3,16,10,1,14,14,17,5]
["12181991F",{"$f":"VLOOKUP(Table_T3[[#This Row],[Matricule]],Table_Elève[[Matricule]:[Classe]],6,0)","v":"6ème3"},{"$f":"IF(COUNT(Table_T3[[#This Row],[CF]:[ANG]])=0,\"\",ROUND(SUM(Table_T3[[#This Row],[CF]:[ANG]]),2))","v":140},{"$f":"IF(Table_T3[Total]=\"\",\"\",ROUND(AVERAGE(Table_T3[[#This Row],[CF]:[ANG]]),2))","v":11.67},20,16,7,15,2,16,11,2,15,16,16,4]
["12181992W",{"$f":"VLOOKUP(Table_T3[[#This Row],[Matricule]],Table_Elève[[Matricule]:[Classe]],6,0)","v":"3ème1"},{"$f":"IF(COUNT(Table_T3[[#This Row],[CF]:[ANG]])=0,\"\",ROUND(SUM(Table_T3[[#This Row],[CF]:[ANG]]),2))","v":126},{"$f":"IF(Table_T3[Total]=\"\",\"\",ROUND(AVERAGE(Table_T3[[#This Row],[CF]:[ANG]]),2))","v":10.5},8,17,8,10,1,16,12,3,16,17,15,3]
["12181993X",{"$f":"VLOOKUP(Table_T3[[#This Row],[Matricule]],Table_Elève[[Matricule]:[Classe]],6,0)","v":"6ème3"},{"$f":"IF(COUNT(Table_T3[[#This Row],[CF]:[ANG]])=0,\"\",ROUND(SUM(Table_T3[[#This Row],[CF]:[ANG]]),2))","v":111},{"$f":"IF(Table_T3[Total]=\"\",\"\",ROUND(AVERAGE(Table_T3[[#This Row],[CF]:[ANG]]),2))","v":10.09},11,16,7,11,2,null,11,2,15,16,16,4]
["12182130D",{"$f":"VLOOKUP(Table_T3[[#This Row],[Matricule]],Table_Elève[[Matricule]:[Classe]],6,0)","v":"6ème3"},{"$f":"IF(COUNT(Table_T3[[#This Row],[CF]:[ANG]])=0,\"\",ROUND(SUM(Table_T3[[#This Row],[CF]:[ANG]]),2))","v":127},{"$f":"IF(Table_T3[Total]=\"\",\"\",ROUND(AVERAGE(Table_T3[[#This Row],[CF]:[ANG]]),2))","v":10.58},14,15,6,12,3,16,10,1,14,14,17,5]
["13217171Q",{"$f":"VLOOKUP(Table_T3[[#This Row],[Matricule]],Table_Elève[[Matricule]:[Classe]],6,0)","v":"6ème3"},{"$f":"IF(COUNT(Table_T3[[#This Row],[CF]:[ANG]])=0,\"\",ROUND(SUM(Table_T3[[#This Row],[CF]:[ANG]]),2))","v":111},{"$f":"IF(Table_T3[Total]=\"\",\"\",ROUND(AVERAGE(Table_T3[[#This Row],[CF]:[ANG]]),2))","v":10.09},7,16,7,3,2,16,11,2,15,16,16]
["13217173G",{"$f":"VLOOKUP(Table_T3[[#This Row],[Matricule]],Table_Elève[[Matricule]:[Classe]],6,0)","v":"6ème3"},{"$f":"IF(COUNT(Table_T3[[#This Row],[CF]:[ANG]])=0,\"\",ROUND(SUM(Table_T3[[#This Row],[CF]:[ANG]]),2))","v":129},{"$f":"IF(Table_T3[Total]=\"\",\"\",ROUND(AVERAGE(Table_T3[[#This Row],[CF]:[ANG]]),2))","v":11.73},11,16,7,17,2,16,11,2,15,16,16]
["13217658G",{"$f":"VLOOKUP(Table_T3[[#This Row],[Matricule]],Table_Elève[[Matricule]:[Classe]],6,0)","v":"6ème3"},{"$f":"IF(COUNT(Table_T3[[#This Row],[CF]:[ANG]])=0,\"\",ROUND(SUM(Table_T3[[#This Row],[CF]:[ANG]]),2))","v":123},{"$f":"IF(Table_T3[Total]=\"\",\"\",ROUND(AVERAGE(Table_T3[[#This Row],[CF]:[ANG]]),2))","v":11.18},16,16,7,6,2,16,11,2,15,16,16]
["13217659H",{"$f":"VLOOKUP(Table_T3[[#This Row],[Matricule]],Table_Elève[[Matricule]:[Classe]],6,0)","v":"6ème3"},{"$f":"IF(COUNT(Table_T3[[#This Row],[CF]:[ANG]])=0,\"\",ROUND(SUM(Table_T3[[#This Row],[CF]:[ANG]]),2))","v":123},{"$f":"IF(Table_T3[Total]=\"\",\"\",ROUND(AVERAGE(Table_T3[[#This Row],[CF]:[ANG]]),2))","v":11.18},2,16,7,20,2,16,11,2,15,16,16]
["13217660P",{"$f":"VLOOKUP(Table_T3[[#This Row],[Matricule]],Table_Elève[[Matricule]:[Classe]],6,0)","v":"6ème3"},{"$f":"IF(COUNT(Table_T3[[#This Row],[CF]:[ANG]])=0,\"\",ROUND(SUM(Table_T3[[#This Row],[CF]:[ANG]]),2))","v":122},{"$f":"IF(Table_T3[Total]=\"\",\"\",ROUND(AVERAGE(Table_T3[[#This Row],[CF]:[ANG]]),2))","v":11.09},8,15,6,18,3,16,10,1,14,14,17]
["13217671M",{"$f":"VLOOKUP(Table_T3[[#This Row],[Matricule]],Table_Elève[[Matricule]:[Classe]],6,0)","v":"6ème3"},{"$f":"IF(COUNT(Table_T3[[#This Row],[CF]:[ANG]])=0,\"\",ROUND(SUM(Table_T3[[#This Row],[CF]:[ANG]]),2))","v":98},{"$f":"IF(Table_T3[Total]=\"\",\"\",ROUND(AVERAGE(Table_T3[[#This Row],[CF]:[ANG]]),2))","v":8.91},1,15,6,1,3,16,10,1,14,14,17]
["13217826G",{"$f":"VLOOKUP(Table_T3[[#This Row],[Matricule]],Table_Elève[[Matricule]:[Classe]],6,0)","v":"6ème3"},{"$f":"IF(COUNT(Table_T3[[#This Row],[CF]:[ANG]])=0,\"\",ROUND(SUM(Table_T3[[#This Row],[CF]:[ANG]]),2))","v":119},{"$f":"IF(Table_T3[Total]=\"\",\"\",ROUND(AVERAGE(Table_T3[[#This Row],[CF]:[ANG]]),2))","v":10.82},6,16,7,12,2,16,11,2,15,16,16]
["14238228G",{"$f":"VLOOKUP(Table_T3[[#This Row],[Matricule]],Table_Elève[[Matricule]:[Classe]],6,0)","v":"6ème3"},{"$f":"IF(COUNT(Table_T3[[#This Row],[CF]:[ANG]])=0,\"\",ROUND(SUM(Table_T3[[#This Row],[CF]:[ANG]]),2))","v":125},{"$f":"IF(Table_T3[Total]=\"\",\"\",ROUND(AVERAGE(Table_T3[[#This Row],[CF]:[ANG]]),2))","v":11.36},15,16,7,9,2,16,11,2,15,16,16]
["14239542Z",{"$f":"VLOOKUP(Table_T3[[#This Row],[Matricule]],Table_Elève[[Matricule]:[Classe]],6,0)","v":"6ème3"},{"$f":"IF(COUNT(Table_T3[[#This Row],[CF]:[ANG]])=0,\"\",ROUND(SUM(Table_T3[[#This Row],[CF]:[ANG]]),2))","v":112},{"$f":"IF(Table_T3[Total]=\"\",\"\",ROUND(AVERAGE(Table_T3[[#This Row],[CF]:[ANG]]),2))","v":10.18},3,15,6,13,3,16,10,1,14,14,17]
["14239543S",{"$f":"VLOOKUP(Table_T3[[#This Row],[Matricule]],Table_Elève[[Matricule]:[Classe]],6,0)","v":"6ème3"},{"$f":"IF(COUNT(Table_T3[[#This Row],[CF]:[ANG]])=0,\"\",ROUND(SUM(Table_T3[[#This Row],[CF]:[ANG]]),2))","v":118},{"$f":"IF(Table_T3[Total]=\"\",\"\",ROUND(AVERAGE(Table_T3[[#This Row],[CF]:[ANG]]),2))","v":10.73},12,15,6,10,3,16,10,1,14,14,17]
["14239544T",{"$f":"VLOOKUP(Table_T3[[#This Row],[Matricule]],Table_Elève[[Matricule]:[Classe]],6,0)","v":"6ème3"},{"$f":"IF(COUNT(Table_T3[[#This Row],[CF]:[ANG]])=0,\"\",ROUND(SUM(Table_T3[[#This Row],[CF]:[ANG]]),2))","v":49},{"$f":"IF(Table_T3[Total]=\"\",\"\",ROUND(AVERAGE(Table_T3[[#This Row],[CF]:[ANG]]),2))","v":8.17},null,null,null,4,3,null,10,1,null,14,17]
["14239688W",{"$f":"VLOOKUP(Table_T3[[#This Row],[Matricule]],Table_Elève[[Matricule]:[Classe]],6,0)","v":"6ème3"},{"$f":"IF(COUNT(Table_T3[[#This Row],[CF]:[ANG]])=0,\"\",ROUND(SUM(Table_T3[[#This Row],[CF]:[ANG]]),2))","v":158.81},{"$f":"IF(Table_T3[Total]=\"\",\"\",ROUND(AVERAGE(Table_T3[[#This Row],[CF]:[ANG]]),2))","v":14.44},12,18,9,13.5,17.71,16,14.4,13.4,14.8,15,15]
["14239690E",{"$f":"VLOOKUP(Table_T3[[#This Row],[Matricule]],Table_Elève[[Matricule]:[Classe]],6,0)","v":"6ème3"},{"$f":"IF(COUNT(Table_T3[[#This Row],[CF]:[ANG]])=0,\"\",ROUND(SUM(Table_T3[[#This Row],[CF]:[ANG]]),2))","v":125},{"$f":"IF(Table_T3[Total]=\"\",\"\",ROUND(AVERAGE(Table_T3[[#This Row],[CF]:[ANG]]),2))","v":11.36},9,17,8,11,1,16,12,3,16,17,15]
["14239830P",{"$f":"VLOOKUP(Table_T3[[#This Row],[Matricule]],Table_Elève[[Matricule]:[Classe]],6,0)","v":"6ème3"},{"$f":"IF(COUNT(Table_T3[[#This Row],[CF]:[ANG]])=0,\"\",ROUND(SUM(Table_T3[[#This Row],[CF]:[ANG]]),2))","v":123},{"$f":"IF(Table_T3[Total]=\"\",\"\",ROUND(AVERAGE(Table_T3[[#This Row],[CF]:[ANG]]),2))","v":11.18},13,17,8,5,1,16,12,3,16,17,15]
["14239831N",{"$f":"VLOOKUP(Table_T3[[#This Row],[Matricule]],Table_Elève[[Matricule]:[Classe]],6,0)","v":"6ème3"},{"$f":"IF(COUNT(Table_T3[[#This Row],[CF]:[ANG]])=0,\"\",ROUND(SUM(Table_T3[[#This Row],[CF]:[ANG]]),2))","v":122},{"$f":"IF(Table_T3[Total]=\"\",\"\",ROUND(AVERAGE(Table_T3[[#This Row],[CF]:[ANG]]),2))","v":11.09},19,15,6,7,3,16,10,1,14,14,17]
["201121T",{"$f":"VLOOKUP(Table_T3[[#This Row],[Matricule]],Table_Elève[[Matricule]:[Classe]],6,0)","v":"6ème3"},{"$f":"IF(COUNT(Table_T3[[#This Row],[CF]:[ANG]])=0,\"\",ROUND(SUM(Table_T3[[#This Row],[CF]:[ANG]]),2))","v":175},{"$f":"IF(Table_T3[Total]=\"\",\"\",ROUND(AVERAGE(Table_T3[[#This Row],[CF]:[ANG]]),2))","v":13.46},11,13,15,18,19,5,18,10,10,11,null,11,17,17]
["22020201J",{"$f":"VLOOKUP(Table_T3[[#This Row],[Matricule]],Table_Elève[[Matricule]:[Classe]],6,0)","v":"6ème3"},{"$f":"IF(COUNT(Table_T3[[#This Row],[CF]:[ANG]])=0,\"\",ROUND(SUM(Table_T3[[#This Row],[CF]:[ANG]]),2))","v":""},{"$f":"IF(Table_T3[Total]=\"\",\"\",ROUND(AVERAGE(Table_T3[[#This Row],[CF]:[ANG]]),2))","v":""}]

{"sheet":"BDS1","index":25,"n_rows":2,"n_cols":17,"rows_kept":2,"cut":false,"hidden":true,"merged":[]}
["Matricule","Classe","Total","Moy","ANG","COND","EPS","FR","CMC","MATH","PHIL","EC","MATH FIN","EOE","EG","DROIT","INFO"]
["23525452M",{"$f":"VLOOKUP(Table_S1[[#This Row],[Matricule]],Table_Elève[[Matricule]:[Classe]],6,0)","v":"TleG1A"},{"$f":"IF(COUNT(Table_S1[[#This Row],[ANG]:[INFO]])=0,\"\",ROUND(SUM(Table_S1[[#This Row],[ANG]:[INFO]]),2))","v":168},{"$f":"IF(Table_S1[Total]=\"\",\"\",ROUND(AVERAGE(Table_S1[[#This Row],[ANG]:[INFO]]),2))","v":12.92},10,12,14,15,10,15,11,16,11,15,10,12,17]

{"sheet":"BDS2","index":26,"n_rows":2,"n_cols":17,"rows_kept":2,"cut":false,"hidden":true,"merged":[]}
["Matricule","Classe","Total","Moy","ANG","COND","EPS","FR","CMC","MATH","PHIL","EC","MATH FIN","EOE","EG","DROIT","INFO"]
["23525452M",{"$f":"VLOOKUP(Table_S2[[#This Row],[Matricule]],Table_Elève[[Matricule]:[Classe]],6,0)","v":"TleG1A"},{"$f":"IF(COUNT(Table_S2[[#This Row],[ANG]:[INFO]])=0,\"\",ROUND(SUM(Table_S2[[#This Row],[ANG]:[INFO]]),2))","v":148},{"$f":"IF(Table_S2[Total]=\"\",\"\",ROUND(AVERAGE(Table_S2[[#This Row],[ANG]:[INFO]]),2))","v":12.33},11,10,14,10,11,14,15,13,13,null,10,11,16]

{"sheet":"BDCoefG","index":27,"n_rows":14,"n_cols":16,"rows_kept":14,"cut":false,"hidden":true,"merged":[]}
["Classe","ANG","AP","CF","COND","EDHC","EPS","EE","FR","HG","LV2","MATH","OG","PHIL","PC","SVT"]
["1èreA1A",2,2,2,2,2,2,2,2,2,2,2,2,2,2,2]
["2ndeC",2,2,2,2,2,2,2,2,2,2,2,2,2,2,2]
["3ème1",2,2,2,2,2,2,2,2,2,2,2,2,2,2,2]
["3ème2",2,2,2,2,2,2,2,2,2,2,2,2,2,2,2]
["3ème3",2,2,2,2,2,2,2,2,2,2,2,2,2,2,2]
["4ème1",2,2,2,2,2,2,2,2,2,2,2,2,2,2,2]
["4ème2",2,2,2,2,2,2,2,2,2,2,2,2,2,2,2]
["4ème3",2,2,2,2,2,2,2,2,2,2,2,2,2,2,2]
["5ème1",2,2,2,2,2,2,2,2,2,2,2,2,2,2,2]
["5ème3",2,2,2,2,2,2,2,2,2,2,2,2,2,2,2]
["6ème1",2,2,2,2,2,2,2,2,2,2,2,2,2,2,2]
["6ème2",2,2,2,2,2,2,2,2,2,2,2,2,2,2,2]
["6ème4",2,2,2,2,2,2,2,2,2,2,2,2,2,2,2]

{"sheet":"BDCoefT","index":28,"n_rows":8,"n_cols":14,"rows_kept":8,"cut":false,"hidden":true,"merged":[]}
["Classe","ANG","COND","EPS","FR","CMC","MATH","PHIL","EC","MATH FIN","EOE","EG","DROIT","INFO"]
["TleG1A",2,2,2,2,2,2,2,2,2,2,2,2,2]
["1èreT1",2,2,2,2,2,2,2,2,2,2,2,2,2]
["1èreT2",2,2,2,2,2,2,2,2,2,2,2,2,2]
["TleAB",2,2,2,2,2,2,2,2,2,2,2,2,2]
["TleT1",2,2,2,2,2,2,2,2,2,2,2,2,2]
["TleG2",2,2,2,2,2,2,2,2,2,2,2,2,2]
["TleB1",2,2,2,2,2,2,2,2,2,2,2,2,2]

{"sheet":"BDMatieres","index":29,"n_rows":18,"n_cols":8,"rows_kept":18,"cut":false,"hidden":true,"merged":[[0,5,0,7],[0,0,0,2]]}
["Contenu Enseignement Bulletin Général",null,null,null,null,"Contenu Enseignement Bulletin Technique"]
[]
["Liste des matières","Abrev","Groupe",null,null,"Liste des matières","Abrev","Groupe"]
["Anglais","ANG","Lettres",null,null,"Anglais","ANG","General"]
["Arts Plastiques","AP","Autres",null,null,"CMC","CMC","General"]
["Composition Française","CF","Français",null,null,"Conduite","COND","General"]
["Conduite","COND","Autres",null,null,"DROIT","DROIT","Technique"]
["EDHC","EDHC","Autres",null,null,"ECONOMIE D'ENTREPRISE","EOE","Technique"]
["EPS","EPS","Autres",null,null,"ECONOMIE GENERALE","EG","Technique"]
["Expression Ecrite","EE","Français",null,null,"EPS","EPS","General"]
["Français","FR","Français",null,null,"Etude de Cas","EC","Technique"]
["Histoire Géographie","HG","Lettres",null,null,"Français","FR","General"]
["LV2","LV2","Lettres",null,null,"INFORMATIQUE","INFO","Technique"]
["Mathématique","MATH","Sciences",null,null,"Mathématique","MATH","General"]
["Orthographe Grammaire","OG","Français",null,null,"MATHEMATIQUE FINANCIERE","MATH FIN","Technique"]
["Philosophie","PHIL","Lettres",null,null,"Philosophie","PHIL","General"]
["Physique Chimie","PC","Sciences"]
["SVT","SVT","Sciences"]

{"sheet":"BDClasse","index":30,"n_rows":22,"n_cols":43,"rows_kept":22,"cut":false,"hidden":true,"merged":[]}
["Classe",null,"1èreA1A",null,"1èreC",null,"2ndeC",null,"3ème1",null,"3ème2",null,"3ème3",null,"4ème1",null,"4ème2",null,"4ème3",null,"5ème1",null,"5ème3",null,"6ème1",null,"6ème2",null,"6ème4",null,"TleG1A",null,"1èreT1",null,"1èreT2",null,"TleAB",null,"TleT1",null,"TleG2",null,"TleB1"]
["1èreA1A",null,"Anglais",null,"Anglais",null,"Anglais",null,"Anglais",null,"Anglais",null,"Anglais",null,"Anglais",null,"Anglais",null,"Anglais",null,"Anglais",null,"Anglais",null,"Anglais",null,"Anglais",null,"Anglais",null,"Anglais",null,"Anglais",null,"Anglais",null,"Anglais",null,"Anglais",null,"Anglais",null,"Anglais"]
["1èreC",null,"Composition Française",null,"Conduite",null,"Conduite",null,"Composition Française",null,"Composition Française",null,"Composition Française",null,"Composition Française",null,"Composition Française",null,"Composition Française",null,"Composition Française",null,"Composition Française",null,"Composition Française",null,"Composition Française",null,"Composition Française",null,"Conduite",null,"CMC",null,"CMC",null,"CMC",null,"CMC",null,"CMC",null,"CMC"]
["1èreT1",null,"Conduite",null,"EDHC",null,"EPS",null,"Conduite",null,"Conduite",null,"Conduite",null,"Conduite",null,"Conduite",null,"Conduite",null,"Conduite",null,"Conduite",null,"Conduite",null,"Conduite",null,"Conduite",null,"EPS",null,"Conduite",null,"Conduite",null,"Conduite",null,"Conduite",null,"Conduite",null,"Conduite"]
["1èreT2",null,"EDHC",null,"EPS",null,"Français",null,"EDHC",null,"EDHC",null,"EDHC",null,"EDHC",null,"EDHC",null,"EDHC",null,"EDHC",null,"EDHC",null,"EDHC",null,"EDHC",null,"EDHC",null,"Français",null,"DROIT",null,"DROIT",null,"DROIT",null,"DROIT",null,"DROIT",null,"DROIT"]
["2ndeC",null,"EPS",null,"Français",null,"Histoire Géographie",null,"EPS",null,"EPS",null,"EPS",null,"EPS",null,"EPS",null,"EPS",null,"EPS",null,"EPS",null,"EPS",null,"EPS",null,"EPS",null,"CMC",null,"ECONOMIE D'ENTREPRISE",null,"ECONOMIE D'ENTREPRISE",null,"ECONOMIE D'ENTREPRISE",null,"ECONOMIE D'ENTREPRISE",null,"ECONOMIE D'ENTREPRISE",null,"ECONOMIE D'ENTREPRISE"]
["3ème1",null,"Expression Ecrite",null,"Histoire Géographie",null,"LV2",null,"Expression Ecrite",null,"Expression Ecrite",null,"Expression Ecrite",null,"Expression Ecrite",null,"Expression Ecrite",null,"Expression Ecrite",null,"Expression Ecrite",null,"Expression Ecrite",null,"Expression Ecrite",null,"Expression Ecrite",null,"Expression Ecrite",null,"Mathématique",null,"ECONOMIE GENERALE",null,"ECONOMIE GENERALE",null,"ECONOMIE GENERALE",null,"ECONOMIE GENERALE",null,"ECONOMIE GENERALE",null,"ECONOMIE GENERALE"]
["3ème2",null,"Histoire Géographie",null,"Mathématique",null,"Mathématique",null,"Histoire Géographie",null,"Histoire Géographie",null,"Histoire Géographie",null,"Histoire Géographie",null,"Histoire Géographie",null,"Histoire Géographie",null,"Histoire Géographie",null,"Histoire Géographie",null,"Histoire Géographie",null,"Histoire Géographie",null,"Histoire Géographie",null,"Philosophie",null,"EPS",null,"EPS",null,"EPS",null,"EPS",null,"EPS",null,"EPS"]
["3ème3",null,"LV2",null,"Physique Chimie",null,"Physique Chimie",null,"LV2",null,"LV2",null,"LV2",null,"LV2",null,"LV2",null,"LV2",null,"Mathématique",null,"Mathématique",null,"Mathématique",null,"Mathématique",null,"Mathématique",null,"Etude de Cas",null,"Etude de Cas",null,"Etude de Cas",null,"Etude de Cas",null,"Etude de Cas",null,"Etude de Cas",null,"Etude de Cas"]
["4ème1",null,"Mathématique",null,"SVT",null,"SVT",null,"Mathématique",null,"Mathématique",null,"Mathématique",null,"Mathématique",null,"Mathématique",null,"Mathématique",null,"Orthographe Grammaire",null,"Orthographe Grammaire",null,"Orthographe Grammaire",null,"Orthographe Grammaire",null,"Orthographe Grammaire",null,"MATHEMATIQUE FINANCIERE",null,"Français",null,"Français",null,"Français",null,"Français",null,"Français",null,"Français"]
["4ème2",null,"Orthographe Grammaire",null,null,null,null,null,"Orthographe Grammaire",null,"Orthographe Grammaire",null,"Orthographe Grammaire",null,"Orthographe Grammaire",null,"Orthographe Grammaire",null,"Orthographe Grammaire",null,"Physique Chimie",null,"Physique Chimie",null,"Physique Chimie",null,"Physique Chimie",null,"Physique Chimie",null,"ECONOMIE D'ENTREPRISE",null,"INFORMATIQUE",null,"INFORMATIQUE",null,"INFORMATIQUE",null,"INFORMATIQUE",null,"INFORMATIQUE",null,"INFORMATIQUE"]
["4ème3",null,"Physique Chimie",null,null,null,null,null,"Physique Chimie",null,"Physique Chimie",null,"Physique Chimie",null,"Physique Chimie",null,"Physique Chimie",null,"Physique Chimie",null,"SVT",null,"SVT",null,"SVT",null,"SVT",null,"SVT",null,"ECONOMIE GENERALE",null,"Mathématique",null,"Mathématique",null,"Mathématique",null,"Mathématique",null,"Mathématique",null,"Mathématique"]
["5ème1",null,"SVT",null,null,null,null,null,"SVT",null,"SVT",null,"SVT",null,"SVT",null,"SVT",null,"SVT",null,"Arts Plastiques",null,"Arts Plastiques",null,"Arts Plastiques",null,"Arts Plastiques",null,"Arts Plastiques",null,"DROIT",null,"MATHEMATIQUE FINANCIERE",null,"MATHEMATIQUE FINANCIERE",null,"MATHEMATIQUE FINANCIERE",null,"MATHEMATIQUE FINANCIERE",null,"MATHEMATIQUE FINANCIERE",null,"MATHEMATIQUE FINANCIERE"]
["5ème3",null,"Arts Plastiques",null,null,null,null,null,"Arts Plastiques",null,"Arts Plastiques",null,"Arts Plastiques",null,"Arts Plastiques",null,"Arts Plastiques",null,"Arts Plastiques",null,null,null,null,null,null,null,null,null,null,null,"INFORMATIQUE",null,"Philosophie",null,"Philosophie",null,"Philosophie",null,"Philosophie",null,"Philosophie",null,"Philosophie"]
["6ème1"]
["6ème2"]
["6ème4"]
["TleAB"]
["TleB1"]
["TleG1A"]
["TleG2"]
["TleT1"]

{"sheet":"ParaMDP","index":31,"n_rows":41,"n_cols":7,"rows_kept":41,"cut":false,"hidden":true,"merged":[]}
["Ligne","ADMIN","315859W","123456Y","293471R","454545T","4544F"]
["Mot de passe","MDP","315859W","123456Y","293471R","454545T","4544F"]
["Ouverture","X","X","X","X","X","X"]
["Scolarité","X"]
["Liste","X","X","X","X","X","X"]
["Saisie_Note","X","X","X","X","X","X"]
["Recueil","X","X","X","X","X","X"]
["Bulletin","X","X","X","X","X","X"]
["Merite","X"]
["RESULTAT","X"]
["Livret","X"]
["Matières","X","X","X","X","X","X"]
["liste_inscrits","X"]
["liste_examen","X"]
["pv_trimestre","X"]
["pv_annuel","X"]
["reçu","X"]
["Inscription","X"]
["Bilan","X"]
["BDProfesseurs","X"]
["BDEducateurs","X"]
["BDEconomat","X"]
["BDElèves","X"]
["BDT1","X"]
["BDT2","X"]
["BDT3","X"]
["BDS1","X"]
["BDS2","X"]
["BDCoefG","X"]
["BDCoefT","X"]
["BDMatieres","X"]
["BDClasse","X"]
["ParaVar","X"]
["ParaMDP","X"]
["ParaImpression","X"]
["ParaEcole","X"]
["TCD","X"]
["BDClasse","X"]
["ParaVar","X"]
["Liste_Matières","X"]
["Liste_Note","X"]

{"sheet":"ParaEcole","index":32,"n_rows":17,"n_cols":18,"rows_kept":17,"cut":false,"hidden":true,"merged":[]}
["Intitulés","Affectation",null,"Sexe",null,"Nationalité",null,"Année Scolaire",null,"Trimestre",null,"Type",null,"Lettre",null,"Chiffre",null,"Diplome"]
["pays","République de cote d'Ivoire",null,"Féminin",null,"Algérienne",null,"2022-2023",null,"1er Trimestre",null,"1ère",null,"A",null,1,null,"Classe"]
["Ministère","Ministre de l'éducation nationale",null,"Masculin",null,"Française",null,null,null,"2ème Trimestre",null,"2nde",null,"AB",null,2,null,"OR"]
["Direction régionale","Direction régionale d'Abidjan sud",null,null,null,"Gabonnaise",null,null,null,"3ème Trimestre",null,"3ème",null,"B",null,3,null,"BEPC"]
["Etablissement","Institut d'enseignement général et technique la Grace Abidjan (IEGTA)",null,null,null,"Ivoirienne",null,null,null,null,null,"4ème",null,"C",null,4,null,"BACA"]
["Adresse","BP V102 Abidjan",null,null,null,null,null,null,null,"Semestre",null,"5ème",null,"D",null,5,null,"BACB"]
["Localité","Abidjan",null,null,null,null,null,null,null,"1er Semestre",null,"6ème",null,"E",null,6,null,"BACC"]
["Téléphone",null,null,null,null,null,null,null,null,"2ème Semestre",null,"Tle",null,"F",null,7,null,"BACD"]
["Email","iegta-grace23@men.edu.ci",null,null,null,null,null,null,null,null,null,null,null,"G",null,8,null,"BACG1"]
["Devise","Union-Discipline-Travail",null,null,null,null,null,null,null,"TriSem",null,null,null,"T",null,9,null,"BACG2"]
["Titre du CE","Directeur",null,null,null,null,null,null,null,false,null,null,null,null,null,10]
["Nom du CE","Serge Kacou",null,null,null,null,null,null,null,null,null,null,null,null,null,11]
["Logo_Pays","\\Images\\Logo_Lycee.jpg",null,null,null,null,null,null,null,null,null,null,null,null,null,12]
["Logo_Ets","\\Images\\Logo.jpg"]
["Compte Email"]
["Mdp Email"]
["Port Email"]

{"sheet":"ParaVar","index":33,"n_rows":2,"n_cols":19,"rows_kept":2,"cut":false,"hidden":true,"merged":[]}
["Utilisateur","TriSem","Matricule","Lg","Col","Page","PasseValeur","ChkEns","AffMasq","T1","T2","T3","T4","T5","T6","S1","S2","S3","S4"]
[null,"Semestre"]

{"sheet":"TCD","index":34,"n_rows":2,"n_cols":17,"rows_kept":2,"cut":false,"hidden":true,"merged":[]}
["Matricule","Classe","Total","Moy","ANG","COND","EPS","FR","CMC","MATH","PHIL","EC","MATH FIN","EOE","EG","DROIT","INFO"]
["23525452M","TleG1A",{"$f":"IF(COUNT(Table_TCD[[#This Row],[ANG]:[INFO]])=0,\"\",SUM(Table_TCD[[#This Row],[ANG]:[INFO]]))","v":316},{"$f":"IF(Table_TCD[[#This Row],[Total]]=\"\",\"\",ROUND(AVERAGE(Table_TCD[[#This Row],[ANG]:[INFO]])/3,2))","v":8.1},21,22,28,25,21,29,26,29,24,15,20,23,33]